{"text_format":"1","workbook":"xlsx","n_sheets":2,"sheets":["SORTEIOS","RANKING"],"not_rendered":{"charts":3,"images":1,"macros":1,"external_links":0,"defined_names":0,"comments":0,"pivot_tables":0},"unopened":[],"bounds":{"document_bytes":16777216,"sheet_cells":100000,"rows_first":2000,"rows_last":500,"rows_between":2000,"halvings":0,"cell_chars":16384,"cell_head_chars":4096},"cells_cut":0,"cells_raw":0,"read":"whole","date_system":"1900"}

{"sheet":"SORTEIOS","index":0,"n_rows":137,"n_cols":21,"rows_kept":137,"cut":false,"hidden":false,"merged":[]}
["Tabela de Sorteios Lotofácil"]
["Concurso","Data do Sorteio","Dia da Semana","D1","D2","D3","D4","D5","D6","D7","D8","D9","D10","D11","D12","D13","D14","D15","Ímpares","Pares","Mais Sorteadas"]
[{"$f":"A4+1","v":2256},"2021-06-15",{"$f":"WEEKDAY(Tbl_Sorteios[[#This Row],[Data do Sorteio]])","v":"1900-01-03"},1,3,4,5,6,8,9,10,11,12,13,16,20,23,24,{"$f":"SUMPRODUCT((MOD(Tbl_Sorteios[[#This Row],[D1]:[D15]],2)))","v":7},{"$f":"COUNTA(Tbl_Sorteios[[#This Row],[D1]:[D15]])-Tbl_Sorteios[[#This Row],[Ímpares]]","v":8},{"$f":"IF(Tbl_Sorteios[[#This Row],[Ímpares]]>Tbl_Sorteios[[#This Row],[Pares]],Tbl_Sorteios[[#Headers],[Ímpares]],Tbl_Sorteios[[#Headers],[Pares]])","v":"Pares"}]
[2255,"2021-06-14",{"$f":"WEEKDAY(Tbl_Sorteios[[#This Row],[Data do Sorteio]])","v":"1900-01-02"},1,3,6,7,8,11,14,15,17,19,20,21,22,24,25,{"$f":"SUMPRODUCT((MOD(Tbl_Sorteios[[#This Row],[D1]:[D15]],2)))","v":9},{"$f":"COUNTA(Tbl_Sorteios[[#This Row],[D1]:[D15]])-Tbl_Sorteios[[#This Row],[Ímpares]]","v":6},{"$f":"IF(Tbl_Sorteios[[#This Row],[Ímpares]]>Tbl_Sorteios[[#This Row],[Pares]],Tbl_Sorteios[[#Headers],[Ímpares]],Tbl_Sorteios[[#Headers],[Pares]])","v":"Ímpares"}]
[2254,"2021-06-12",{"$f":"WEEKDAY(Tbl_Sorteios[[#This Row],[Data do Sorteio]])","v":"1900-01-07"},2,3,5,6,7,8,10,12,13,14,19,20,21,24,25,{"$f":"SUMPRODUCT((MOD(Tbl_Sorteios[[#This Row],[D1]:[D15]],2)))","v":7},{"$f":"COUNTA(Tbl_Sorteios[[#This Row],[D1]:[D15]])-Tbl_Sorteios[[#This Row],[Ímpares]]","v":8},{"$f":"IF(Tbl_Sorteios[[#This Row],[Ímpares]]>Tbl_Sorteios[[#This Row],[Pares]],Tbl_Sorteios[[#Headers],[Ímpares]],Tbl_Sorteios[[#Headers],[Pares]])","v":"Pares"}]
[2253,"2021-06-11",{"$f":"WEEKDAY(Tbl_Sorteios[[#This Row],[Data do Sorteio]])","v":"1900-01-06"},2,3,5,6,7,8,12,14,15,16,18,19,20,23,25,{"$f":"SUMPRODUCT((MOD(Tbl_Sorteios[[#This Row],[D1]:[D15]],2)))","v":7},{"$f":"COUNTA(Tbl_Sorteios[[#This Row],[D1]:[D15]])-Tbl_Sorteios[[#This Row],[Ímpares]]","v":8},{"$f":"IF(Tbl_Sorteios[[#This Row],[Ímpares]]>Tbl_Sorteios[[#This Row],[Pares]],Tbl_Sorteios[[#Headers],[Ímpares]],Tbl_Sorteios[[#Headers],[Pares]])","v":"Pares"}]
[2252,"2021-06-10",{"$f":"WEEKDAY(Tbl_Sorteios[[#This Row],[Data do Sorteio]])","v":"1900-01-05"},1,5,6,8,9,10,12,16,17,19,20,21,22,24,25,{"$f":"SUMPRODUCT((MOD(Tbl_Sorteios[[#This Row],[D1]:[D15]],2)))","v":7},{"$f":"COUNTA(Tbl_Sorteios[[#This Row],[D1]:[D15]])-Tbl_Sorteios[[#This Row],[Ímpares]]","v":8},{"$f":"IF(Tbl_Sorteios[[#This Row],[Ímpares]]>Tbl_Sorteios[[#This Row],[Pares]],Tbl_Sorteios[[#Headers],[Ímpares]],Tbl_Sorteios[[#Headers],[Pares]])","v":"Pares"}]
[2251,"2021-06-09",{"$f":"WEEKDAY(Tbl_Sorteios[[#This Row],[Data do Sorteio]])","v":"1900-01-04"},2,4,5,7,9,12,13,14,15,18,19,21,22,23,24,{"$f":"SUMPRODUCT((MOD(Tbl_Sorteios[[#This Row],[D1]:[D15]],2)))","v":8},{"$f":"COUNTA(Tbl_Sorteios[[#This Row],[D1]:[D15]])-Tbl_Sorteios[[#This Row],[Ímpares]]","v":7},{"$f":"IF(Tbl_Sorteios[[#This Row],[Ímpares]]>Tbl_Sorteios[[#This Row],[Pares]],Tbl_Sorteios[[#Headers],[Ímpares]],Tbl_Sorteios[[#Headers],[Pares]])","v":"Ímpares"}]
[2250,"2021-06-08",{"$f":"WEEKDAY(Tbl_Sorteios[[#This Row],[Data do Sorteio]])","v":"1900-01-03"},4,5,6,10,12,13,14,18,19,20,21,22,23,24,25,{"$f":"SUMPRODUCT((MOD(Tbl_Sorteios[[#This Row],[D1]:[D15]],2)))","v":6},{"$f":"COUNTA(Tbl_Sorteios[[#This Row],[D1]:[D15]])-Tbl_Sorteios[[#This Row],[Ímpares]]","v":9},{"$f":"IF(Tbl_Sorteios[[#This Row],[Ímpares]]>Tbl_Sorteios[[#This Row],[Pares]],Tbl_Sorteios[[#Headers],[Ímpares]],Tbl_Sorteios[[#Headers],[Pares]])","v":"Pares"}]
[2249,"2021-06-07",{"$f":"WEEKDAY(Tbl_Sorteios[[#This Row],[Data do Sorteio]])","v":"1900-01-02"},2,6,11,12,14,15,16,17,18,19,21,22,23,24,25,{"$f":"SUMPRODUCT((MOD(Tbl_Sorteios[[#This Row],[D1]:[D15]],2)))","v":7},{"$f":"COUNTA(Tbl_Sorteios[[#This Row],[D1]:[D15]])-Tbl_Sorteios[[#This Row],[Ímpares]]","v":8},{"$f":"IF(Tbl_Sorteios[[#This Row],[Ímpares]]>Tbl_Sorteios[[#This Row],[Pares]],Tbl_Sorteios[[#Headers],[Ímpares]],Tbl_Sorteios[[#Headers],[Pares]])","v":"Pares"}]
[2248,"2021-06-05",{"$f":"WEEKDAY(Tbl_Sorteios[[#This Row],[Data do Sorteio]])","v":"1900-01-07"},1,2,4,6,7,8,10,11,12,13,14,16,17,23,25,{"$f":"SUMPRODUCT((MOD(Tbl_Sorteios[[#This Row],[D1]:[D15]],2)))","v":7},{"$f":"COUNTA(Tbl_Sorteios[[#This Row],[D1]:[D15]])-Tbl_Sorteios[[#This Row],[Ímpares]]","v":8},{"$f":"IF(Tbl_Sorteios[[#This Row],[Ímpares]]>Tbl_Sorteios[[#This Row],[Pares]],Tbl_Sorteios[[#Headers],[Ímpares]],Tbl_Sorteios[[#Headers],[Pares]])","v":"Pares"}]
[2247,"2021-06-04",{"$f":"WEEKDAY(Tbl_Sorteios[[#This Row],[Data do Sorteio]])","v":"1900-01-06"},1,3,6,7,8,9,10,12,17,18,19,20,22,24,25,{"$f":"SUMPRODUCT((MOD(Tbl_Sorteios[[#This Row],[D1]:[D15]],2)))","v":7},{"$f":"COUNTA(Tbl_Sorteios[[#This Row],[D1]:[D15]])-Tbl_Sorteios[[#This Row],[Ímpares]]","v":8},{"$f":"IF(Tbl_Sorteios[[#This Row],[Ímpares]]>Tbl_Sorteios[[#This Row],[Pares]],Tbl_Sorteios[[#Headers],[Ímpares]],Tbl_Sorteios[[#Headers],[Pares]])","v":"Pares"}]
[2246,"2021-06-02",{"$f":"WEEKDAY(Tbl_Sorteios[[#This Row],[Data do Sorteio]])","v":"1900-01-04"},2,3,4,5,7,8,10,11,12,13,14,15,18,20,25,{"$f":"SUMPRODUCT((MOD(Tbl_Sorteios[[#This Row],[D1]:[D15]],2)))","v":7},{"$f":"COUNTA(Tbl_Sorteios[[#This Row],[D1]:[D15]])-Tbl_Sorteios[[#This Row],[Ímpares]]","v":8},{"$f":"IF(Tbl_Sorteios[[#This Row],[Ímpares]]>Tbl_Sorteios[[#This Row],[Pares]],Tbl_Sorteios[[#Headers],[Ímpares]],Tbl_Sorteios[[#Headers],[Pares]])","v":"Pares"}]
[2245,"2021-06-01",{"$f":"WEEKDAY(Tbl_Sorteios[[#This Row],[Data do Sorteio]])","v":"1900-01-03"},2,5,6,7,8,13,14,16,17,18,21,22,23,24,25,{"$f":"SUMPRODUCT((MOD(Tbl_Sorteios[[#This Row],[D1]:[D15]],2)))","v":7},{"$f":"COUNTA(Tbl_Sorteios[[#This Row],[D1]:[D15]])-Tbl_Sorteios[[#This Row],[Ímpares]]","v":8},{"$f":"IF(Tbl_Sorteios[[#This Row],[Ímpares]]>Tbl_Sorteios[[#This Row],[Pares]],Tbl_Sorteios[[#Headers],[Ímpares]],Tbl_Sorteios[[#Headers],[Pares]])","v":"Pares"}]
[2244,"2021-05-31",{"$f":"WEEKDAY(Tbl_Sorteios[[#This Row],[Data do Sorteio]])","v":"1900-01-02"},4,5,6,8,9,10,11,13,14,15,16,17,21,23,25,{"$f":"SUMPRODUCT((MOD(Tbl_Sorteios[[#This Row],[D1]:[D15]],2)))","v":9},{"$f":"COUNTA(Tbl_Sorteios[[#This Row],[D1]:[D15]])-Tbl_Sorteios[[#This Row],[Ímpares]]","v":6},{"$f":"IF(Tbl_Sorteios[[#This Row],[Ímpares]]>Tbl_Sorteios[[#This Row],[Pares]],Tbl_Sorteios[[#Headers],[Ímpares]],Tbl_Sorteios[[#Headers],[Pares]])","v":"Ímpares"}]
[2243,"2021-05-29",{"$f":"WEEKDAY(Tbl_Sorteios[[#This Row],[Data do Sorteio]])","v":"1900-01-07"},1,5,6,8,10,11,14,15,17,18,19,20,21,24,25,{"$f":"SUMPRODUCT((MOD(Tbl_Sorteios[[#This Row],[D1]:[D15]],2)))","v":8},{"$f":"COUNTA(Tbl_Sorteios[[#This Row],[D1]:[D15]])-Tbl_Sorteios[[#This Row],[Ímpares]]","v":7},{"$f":"IF(Tbl_Sorteios[[#This Row],[Ímpares]]>Tbl_Sorteios[[#This Row],[Pares]],Tbl_Sorteios[[#Headers],[Ímpares]],Tbl_Sorteios[[#Headers],[Pares]])","v":"Ímpares"}]
[2242,"2021-05-28",{"$f":"WEEKDAY(Tbl_Sorteios[[#This Row],[Data do Sorteio]])","v":"1900-01-06"},3,4,5,8,9,10,11,12,16,17,19,20,21,22,25,{"$f":"SUMPRODUCT((MOD(Tbl_Sorteios[[#This Row],[D1]:[D15]],2)))","v":8},{"$f":"COUNTA(Tbl_Sorteios[[#This Row],[D1]:[D15]])-Tbl_Sorteios[[#This Row],[Ímpares]]","v":7},{"$f":"IF(Tbl_Sorteios[[#This Row],[Ímpares]]>Tbl_Sorteios[[#This Row],[Pares]],Tbl_Sorteios[[#Headers],[Ímpares]],Tbl_Sorteios[[#Headers],[Pares]])","v":"Ímpares"}]
[2241,"2021-05-27",{"$f":"WEEKDAY(Tbl_Sorteios[[#This Row],[Data do Sorteio]])","v":"1900-01-05"},1,3,7,8,9,10,13,15,16,18,20,21,23,24,25,{"$f":"SUMPRODUCT((MOD(Tbl_Sorteios[[#This Row],[D1]:[D15]],2)))","v":9},{"$f":"COUNTA(Tbl_Sorteios[[#This Row],[D1]:[D15]])-Tbl_Sorteios[[#This Row],[Ímpares]]","v":6},{"$f":"IF(Tbl_Sorteios[[#This Row],[Ímpares]]>Tbl_Sorteios[[#This Row],[Pares]],Tbl_Sorteios[[#Headers],[Ímpares]],Tbl_Sorteios[[#Headers],[Pares]])","v":"Ímpares"}]
[2240,"2021-05-26",{"$f":"WEEKDAY(Tbl_Sorteios[[#This Row],[Data do Sorteio]])","v":"1900-01-04"},2,3,4,6,7,9,11,12,13,15,17,18,19,20,25,{"$f":"SUMPRODUCT((MOD(Tbl_Sorteios[[#This Row],[D1]:[D15]],2)))","v":9},{"$f":"COUNTA(Tbl_Sorteios[[#This Row],[D1]:[D15]])-Tbl_Sorteios[[#This Row],[Ímpares]]","v":6},{"$f":"IF(Tbl_Sorteios[[#This Row],[Ímpares]]>Tbl_Sorteios[[#This Row],[Pares]],Tbl_Sorteios[[#Headers],[Ímpares]],Tbl_Sorteios[[#Headers],[Pares]])","v":"Ímpares"}]
[2239,"2021-05-25",{"$f":"WEEKDAY(Tbl_Sorteios[[#This Row],[Data do Sorteio]])","v":"1900-01-03"},1,2,5,6,7,10,13,14,15,16,17,20,22,23,24,{"$f":"SUMPRODUCT((MOD(Tbl_Sorteios[[#This Row],[D1]:[D15]],2)))","v":7},{"$f":"COUNTA(Tbl_Sorteios[[#This Row],[D1]:[D15]])-Tbl_Sorteios[[#This Row],[Ímpares]]","v":8},{"$f":"IF(Tbl_Sorteios[[#This Row],[Ímpares]]>Tbl_Sorteios[[#This Row],[Pares]],Tbl_Sorteios[[#Headers],[Ímpares]],Tbl_Sorteios[[#Headers],[Pares]])","v":"Pares"}]
[2238,"2021-05-24",{"$f":"WEEKDAY(Tbl_Sorteios[[#This Row],[Data do Sorteio]])","v":"1900-01-02"},1,3,4,5,6,7,10,11,14,15,16,18,19,20,25,{"$f":"SUMPRODUCT((MOD(Tbl_Sorteios[[#This Row],[D1]:[D15]],2)))","v":8},{"$f":"COUNTA(Tbl_Sorteios[[#This Row],[D1]:[D15]])-Tbl_Sorteios[[#This Row],[Ímpares]]","v":7},{"$f":"IF(Tbl_Sorteios[[#This Row],[Ímpares]]>Tbl_Sorteios[[#This Row],[Pares]],Tbl_Sorteios[[#Headers],[Ímpares]],Tbl_Sorteios[[#Headers],[Pares]])","v":"Ímpares"}]
[2237,"2021-05-22",{"$f":"WEEKDAY(Tbl_Sorteios[[#This Row],[Data do Sorteio]])","v":"1900-01-07"},3,5,6,9,12,13,14,15,17,19,20,21,22,23,25,{"$f":"SUMPRODUCT((MOD(Tbl_Sorteios[[#This Row],[D1]:[D15]],2)))","v":10},{"$f":"COUNTA(Tbl_Sorteios[[#This Row],[D1]:[D15]])-Tbl_Sorteios[[#This Row],[Ímpares]]","v":5},{"$f":"IF(Tbl_Sorteios[[#This Row],[Ímpares]]>Tbl_Sorteios[[#This Row],[Pares]],Tbl_Sorteios[[#Headers],[Ímpares]],Tbl_Sorteios[[#Headers],[Pares]])","v":"Ímpares"}]
[2236,"2021-05-21",{"$f":"WEEKDAY(Tbl_Sorteios[[#This Row],[Data do Sorteio]])","v":"1900-01-06"},2,3,4,5,8,9,10,11,12,17,18,19,21,22,24,{"$f":"SUMPRODUCT((MOD(Tbl_Sorteios[[#This Row],[D1]:[D15]],2)))","v":7},{"$f":"COUNTA(Tbl_Sorteios[[#This Row],[D1]:[D15]])-Tbl_Sorteios[[#This Row],[Ímpares]]","v":8},{"$f":"IF(Tbl_Sorteios[[#This Row],[Ímpares]]>Tbl_Sorteios[[#This Row],[Pares]],Tbl_Sorteios[[#Headers],[Ímpares]],Tbl_Sorteios[[#Headers],[Pares]])","v":"Pares"}]
[2235,"2021-05-20",{"$f":"WEEKDAY(Tbl_Sorteios[[#This Row],[Data do Sorteio]])","v":"1900-01-05"},2,4,6,7,8,10,11,12,16,17,19,21,22,23,25,{"$f":"SUMPRODUCT((MOD(Tbl_Sorteios[[#This Row],[D1]:[D15]],2)))","v":7},{"$f":"COUNTA(Tbl_Sorteios[[#This Row],[D1]:[D15]])-Tbl_Sorteios[[#This Row],[Ímpares]]","v":8},{"$f":"IF(Tbl_Sorteios[[#This Row],[Ímpares]]>Tbl_Sorteios[[#This Row],[Pares]],Tbl_Sorteios[[#Headers],[Ímpares]],Tbl_Sorteios[[#Headers],[Pares]])","v":"Pares"}]
[2234,"2021-05-19",{"$f":"WEEKDAY(Tbl_Sorteios[[#This Row],[Data do Sorteio]])","v":"1900-01-04"},1,2,3,6,7,11,14,15,17,18,20,21,22,24,25,{"$f":"SUMPRODUCT((MOD(Tbl_Sorteios[[#This Row],[D1]:[D15]],2)))","v":8},{"$f":"COUNTA(Tbl_Sorteios[[#This Row],[D1]:[D15]])-Tbl_Sorteios[[#This Row],[Ímpares]]","v":7},{"$f":"IF(Tbl_Sorteios[[#This Row],[Ímpares]]>Tbl_Sorteios[[#This Row],[Pares]],Tbl_Sorteios[[#Headers],[Ímpares]],Tbl_Sorteios[[#Headers],[Pares]])","v":"Ímpares"}]
[2233,"2021-05-18",{"$f":"WEEKDAY(Tbl_Sorteios[[#This Row],[Data do Sorteio]])","v":"1900-01-03"},1,2,6,7,8,9,10,12,13,14,15,16,20,21,25,{"$f":"SUMPRODUCT((MOD(Tbl_Sorteios[[#This Row],[D1]:[D15]],2)))","v":7},{"$f":"COUNTA(Tbl_Sorteios[[#This Row],[D1]:[D15]])-Tbl_Sorteios[[#This Row],[Ímpares]]","v":8},{"$f":"IF(Tbl_Sorteios[[#This Row],[Ímpares]]>Tbl_Sorteios[[#This Row],[Pares]],Tbl_Sorteios[[#Headers],[Ímpares]],Tbl_Sorteios[[#Headers],[Pares]])","v":"Pares"}]
[2232,"17/05/2021",{"$f":"WEEKDAY(Tbl_Sorteios[[#This Row],[Data do Sorteio]])","v":"1900-01-02"},2,4,5,6,8,9,12,13,14,19,20,22,23,24,25,{"$f":"SUMPRODUCT((MOD(Tbl_Sorteios[[#This Row],[D1]:[D15]],2)))","v":6},{"$f":"COUNTA(Tbl_Sorteios[[#This Row],[D1]:[D15]])-Tbl_Sorteios[[#This Row],[Ímpares]]","v":9},{"$f":"IF(Tbl_Sorteios[[#This Row],[Ímpares]]>Tbl_Sorteios[[#This Row],[Pares]],Tbl_Sorteios[[#Headers],[Ímpares]],Tbl_Sorteios[[#Headers],[Pares]])","v":"Pares"}]
[2231,"15/05/2021",{"$f":"WEEKDAY(Tbl_Sorteios[[#This Row],[Data do Sorteio]])","v":"1900-01-07"},1,4,5,6,7,8,10,11,16,18,19,20,22,24,25,{"$f":"SUMPRODUCT((MOD(Tbl_Sorteios[[#This Row],[D1]:[D15]],2)))","v":6},{"$f":"COUNTA(Tbl_Sorteios[[#This Row],[D1]:[D15]])-Tbl_Sorteios[[#This Row],[Ímpares]]","v":9},{"$f":"IF(Tbl_Sorteios[[#This Row],[Ímpares]]>Tbl_Sorteios[[#This Row],[Pares]],Tbl_Sorteios[[#Headers],[Ímpares]],Tbl_Sorteios[[#Headers],[Pares]])","v":"Pares"}]
[2230,"14/05/2021",{"$f":"WEEKDAY(Tbl_Sorteios[[#This Row],[Data do Sorteio]])","v":"1900-01-06"},3,4,6,8,9,10,11,13,14,15,17,18,19,20,24,{"$f":"SUMPRODUCT((MOD(Tbl_Sorteios[[#This Row],[D1]:[D15]],2)))","v":7},{"$f":"COUNTA(Tbl_Sorteios[[#This Row],[D1]:[D15]])-Tbl_Sorteios[[#This Row],[Ímpares]]","v":8},{"$f":"IF(Tbl_Sorteios[[#This Row],[Ímpares]]>Tbl_Sorteios[[#This Row],[Pares]],Tbl_Sorteios[[#Headers],[Ímpares]],Tbl_Sorteios[[#Headers],[Pares]])","v":"Pares"}]
[2229,"13/05/2021",{"$f":"WEEKDAY(Tbl_Sorteios[[#This Row],[Data do Sorteio]])","v":"1900-01-05"},1,2,3,4,7,8,9,10,14,17,19,20,23,24,25,{"$f":"SUMPRODUCT((MOD(Tbl_Sorteios[[#This Row],[D1]:[D15]],2)))","v":8},{"$f":"COUNTA(Tbl_Sorteios[[#This Row],[D1]:[D15]])-Tbl_Sorteios[[#This Row],[Ímpares]]","v":7},{"$f":"IF(Tbl_Sorteios[[#This Row],[Ímpares]]>Tbl_Sorteios[[#This Row],[Pares]],Tbl_Sorteios[[#Headers],[Ímpares]],Tbl_Sorteios[[#Headers],[Pares]])","v":"Ímpares"}]
[2228,"12/05/2021",{"$f":"WEEKDAY(Tbl_Sorteios[[#This Row],[Data do Sorteio]])","v":"1900-01-04"},1,4,5,6,7,11,12,13,16,17,18,19,20,22,23,{"$f":"SUMPRODUCT((MOD(Tbl_Sorteios[[#This Row],[D1]:[D15]],2)))","v":8},{"$f":"COUNTA(Tbl_Sorteios[[#This Row],[D1]:[D15]])-Tbl_Sorteios[[#This Row],[Ímpares]]","v":7},{"$f":"IF(Tbl_Sorteios[[#This Row],[Ímpares]]>Tbl_Sorteios[[#This Row],[Pares]],Tbl_Sorteios[[#Headers],[Ímpares]],Tbl_Sorteios[[#Headers],[Pares]])","v":"Ímpares"}]
[2227,"11/05/2021",{"$f":"WEEKDAY(Tbl_Sorteios[[#This Row],[Data do Sorteio]])","v":"1900-01-03"},2,3,7,8,9,10,11,12,15,17,20,21,22,23,24,{"$f":"SUMPRODUCT((MOD(Tbl_Sorteios[[#This Row],[D1]:[D15]],2)))","v":8},{"$f":"COUNTA(Tbl_Sorteios[[#This Row],[D1]:[D15]])-Tbl_Sorteios[[#This Row],[Ímpares]]","v":7},{"$f":"IF(Tbl_Sorteios[[#This Row],[Ímpares]]>Tbl_Sorteios[[#This Row],[Pares]],Tbl_Sorteios[[#Headers],[Ímpares]],Tbl_Sorteios[[#Headers],[Pares]])","v":"Ímpares"}]
[2226,"10/05/2021",{"$f":"WEEKDAY(Tbl_Sorteios[[#This Row],[Data do Sorteio]])","v":"1900-01-02"},1,3,4,5,9,10,12,13,14,15,16,17,19,21,22,{"$f":"SUMPRODUCT((MOD(Tbl_Sorteios[[#This Row],[D1]:[D15]],2)))","v":9},{"$f":"COUNTA(Tbl_Sorteios[[#This Row],[D1]:[D15]])-Tbl_Sorteios[[#This Row],[Ímpares]]","v":6},{"$f":"IF(Tbl_Sorteios[[#This Row],[Ímpares]]>Tbl_Sorteios[[#This Row],[Pares]],Tbl_Sorteios[[#Headers],[Ímpares]],Tbl_Sorteios[[#Headers],[Pares]])","v":"Ímpares"}]
[2225,"08/05/2021",{"$f":"WEEKDAY(Tbl_Sorteios[[#This Row],[Data do Sorteio]])","v":"1900-01-07"},2,3,4,7,8,9,10,11,13,17,19,21,22,23,25,{"$f":"SUMPRODUCT((MOD(Tbl_Sorteios[[#This Row],[D1]:[D15]],2)))","v":10},{"$f":"COUNTA(Tbl_Sorteios[[#This Row],[D1]:[D15]])-Tbl_Sorteios[[#This Row],[Ímpares]]","v":5},{"$f":"IF(Tbl_Sorteios[[#This Row],[Ímpares]]>Tbl_Sorteios[[#This Row],[Pares]],Tbl_Sorteios[[#Headers],[Ímpares]],Tbl_Sorteios[[#Headers],[Pares]])","v":"Ímpares"}]
[2224,"07/05/2021",{"$f":"WEEKDAY(Tbl_Sorteios[[#This Row],[Data do Sorteio]])","v":"1900-01-06"},3,5,6,7,9,10,12,13,14,15,18,19,20,23,24,{"$f":"SUMPRODUCT((MOD(Tbl_Sorteios[[#This Row],[D1]:[D15]],2)))","v":8},{"$f":"COUNTA(Tbl_Sorteios[[#This Row],[D1]:[D15]])-Tbl_Sorteios[[#This Row],[Ímpares]]","v":7},{"$f":"IF(Tbl_Sorteios[[#This Row],[Ímpares]]>Tbl_Sorteios[[#This Row],[Pares]],Tbl_Sorteios[[#Headers],[Ímpares]],Tbl_Sorteios[[#Headers],[Pares]])","v":"Ímpares"}]
[2223,"06/05/2021",{"$f":"WEEKDAY(Tbl_Sorteios[[#This Row],[Data do Sorteio]])","v":"1900-01-05"},1,4,5,7,8,9,11,12,14,18,20,21,22,24,25,{"$f":"SUMPRODUCT((MOD(Tbl_Sorteios[[#This Row],[D1]:[D15]],2)))","v":7},{"$f":"COUNTA(Tbl_Sorteios[[#This Row],[D1]:[D15]])-Tbl_Sorteios[[#This Row],[Ímpares]]","v":8},{"$f":"IF(Tbl_Sorteios[[#This Row],[Ímpares]]>Tbl_Sorteios[[#This Row],[Pares]],Tbl_Sorteios[[#Headers],[Ímpares]],Tbl_Sorteios[[#Headers],[Pares]])","v":"Pares"}]
[2222,"05/05/2021",{"$f":"WEEKDAY(Tbl_Sorteios[[#This Row],[Data do Sorteio]])","v":"1900-01-04"},2,4,5,6,7,8,9,10,12,13,14,19,22,23,24,{"$f":"SUMPRODUCT((MOD(Tbl_Sorteios[[#This Row],[D1]:[D15]],2)))","v":6},{"$f":"COUNTA(Tbl_Sorteios[[#This Row],[D1]:[D15]])-Tbl_Sorteios[[#This Row],[Ímpares]]","v":9},{"$f":"IF(Tbl_Sorteios[[#This Row],[Ímpares]]>Tbl_Sorteios[[#This Row],[Pares]],Tbl_Sorteios[[#Headers],[Ímpares]],Tbl_Sorteios[[#Headers],[Pares]])","v":"Pares"}]
[2221,"04/05/2021",{"$f":"WEEKDAY(Tbl_Sorteios[[#This Row],[Data do Sorteio]])","v":"1900-01-03"},1,2,3,4,5,8,9,10,12,13,16,18,20,22,23,{"$f":"SUMPRODUCT((MOD(Tbl_Sorteios[[#This Row],[D1]:[D15]],2)))","v":6},{"$f":"COUNTA(Tbl_Sorteios[[#This Row],[D1]:[D15]])-Tbl_Sorteios[[#This Row],[Ímpares]]","v":9},{"$f":"IF(Tbl_Sorteios[[#This Row],[Ímpares]]>Tbl_Sorteios[[#This Row],[Pares]],Tbl_Sorteios[[#Headers],[Ímpares]],Tbl_Sorteios[[#Headers],[Pares]])","v":"Pares"}]
[2220,"03/05/2021",{"$f":"WEEKDAY(Tbl_Sorteios[[#This Row],[Data do Sorteio]])","v":"1900-01-02"},1,5,6,7,8,9,10,12,13,16,18,20,23,24,25,{"$f":"SUMPRODUCT((MOD(Tbl_Sorteios[[#This Row],[D1]:[D15]],2)))","v":7},{"$f":"COUNTA(Tbl_Sorteios[[#This Row],[D1]:[D15]])-Tbl_Sorteios[[#This Row],[Ímpares]]","v":8},{"$f":"IF(Tbl_Sorteios[[#This Row],[Ímpares]]>Tbl_Sorteios[[#This Row],[Pares]],Tbl_Sorteios[[#Headers],[Ímpares]],Tbl_Sorteios[[#Headers],[Pares]])","v":"Pares"}]
[2219,"30/04/2021",{"$f":"WEEKDAY(Tbl_Sorteios[[#This Row],[Data do Sorteio]])","v":"1900-01-06"},2,5,6,7,8,10,13,15,16,17,19,20,22,24,25,{"$f":"SUMPRODUCT((MOD(Tbl_Sorteios[[#This Row],[D1]:[D15]],2)))","v":7},{"$f":"COUNTA(Tbl_Sorteios[[#This Row],[D1]:[D15]])-Tbl_Sorteios[[#This Row],[Ímpares]]","v":8},{"$f":"IF(Tbl_Sorteios[[#This Row],[Ímpares]]>Tbl_Sorteios[[#This Row],[Pares]],Tbl_Sorteios[[#Headers],[Ímpares]],Tbl_Sorteios[[#Headers],[Pares]])","v":"Pares"}]
[2218,"29/04/2021",{"$f":"WEEKDAY(Tbl_Sorteios[[#This Row],[Data do Sorteio]])","v":"1900-01-05"},3,4,5,6,11,12,13,15,16,17,18,20,21,23,24,{"$f":"SUMPRODUCT((MOD(Tbl_Sorteios[[#This Row],[D1]:[D15]],2)))","v":8},{"$f":"COUNTA(Tbl_Sorteios[[#This Row],[D1]:[D15]])-Tbl_Sorteios[[#This Row],[Ímpares]]","v":7},{"$f":"IF(Tbl_Sorteios[[#This Row],[Ímpares]]>Tbl_Sorteios[[#This Row],[Pares]],Tbl_Sorteios[[#Headers],[Ímpares]],Tbl_Sorteios[[#Headers],[Pares]])","v":"Ímpares"}]
[2217,"28/04/2021",{"$f":"WEEKDAY(Tbl_Sorteios[[#This Row],[Data do Sorteio]])","v":"1900-01-04"},1,6,7,9,10,11,14,15,16,18,19,20,22,23,25,{"$f":"SUMPRODUCT((MOD(Tbl_Sorteios[[#This Row],[D1]:[D15]],2)))","v":8},{"$f":"COUNTA(Tbl_Sorteios[[#This Row],[D1]:[D15]])-Tbl_Sorteios[[#This Row],[Ímpares]]","v":7},{"$f":"IF(Tbl_Sorteios[[#This Row],[Ímpares]]>Tbl_Sorteios[[#This Row],[Pares]],Tbl_Sorteios[[#Headers],[Ímpares]],Tbl_Sorteios[[#Headers],[Pares]])","v":"Ímpares"}]
[2216,"27/04/2021",{"$f":"WEEKDAY(Tbl_Sorteios[[#This Row],[Data do Sorteio]])","v":"1900-01-03"},1,2,3,4,6,9,10,13,14,15,17,19,21,22,25,{"$f":"SUMPRODUCT((MOD(Tbl_Sorteios[[#This Row],[D1]:[D15]],2)))","v":9},{"$f":"COUNTA(Tbl_Sorteios[[#This Row],[D1]:[D15]])-Tbl_Sorteios[[#This Row],[Ímpares]]","v":6},{"$f":"IF(Tbl_Sorteios[[#This Row],[Ímpares]]>Tbl_Sorteios[[#This Row],[Pares]],Tbl_Sorteios[[#Headers],[Ímpares]],Tbl_Sorteios[[#Headers],[Pares]])","v":"Ímpares"}]
[2215,"26/04/2021",{"$f":"WEEKDAY(Tbl_Sorteios[[#This Row],[Data do Sorteio]])","v":"1900-01-02"},2,3,4,6,7,9,11,13,15,17,18,19,23,24,25,{"$f":"SUMPRODUCT((MOD(Tbl_Sorteios[[#This Row],[D1]:[D15]],2)))","v":10},{"$f":"COUNTA(Tbl_Sorteios[[#This Row],[D1]:[D15]])-Tbl_Sorteios[[#This Row],[Ímpares]]","v":5},{"$f":"IF(Tbl_Sorteios[[#This Row],[Ímpares]]>Tbl_Sorteios[[#This Row],[Pares]],Tbl_Sorteios[[#Headers],[Ímpares]],Tbl_Sorteios[[#Headers],[Pares]])","v":"Ímpares"}]
[2214,"24/04/2021",{"$f":"WEEKDAY(Tbl_Sorteios[[#This Row],[Data do Sorteio]])","v":"1900-01-07"},3,6,7,9,11,12,13,14,16,17,19,21,22,23,25,{"$f":"SUMPRODUCT((MOD(Tbl_Sorteios[[#This Row],[D1]:[D15]],2)))","v":10},{"$f":"COUNTA(Tbl_Sorteios[[#This Row],[D1]:[D15]])-Tbl_Sorteios[[#This Row],[Ímpares]]","v":5},{"$f":"IF(Tbl_Sorteios[[#This Row],[Ímpares]]>Tbl_Sorteios[[#This Row],[Pares]],Tbl_Sorteios[[#Headers],[Ímpares]],Tbl_Sorteios[[#Headers],[Pares]])","v":"Ímpares"}]
[2213,"23/04/2021",{"$f":"WEEKDAY(Tbl_Sorteios[[#This Row],[Data do Sorteio]])","v":"1900-01-06"},3,4,5,6,7,8,10,16,17,18,19,20,22,24,25,{"$f":"SUMPRODUCT((MOD(Tbl_Sorteios[[#This Row],[D1]:[D15]],2)))","v":6},{"$f":"COUNTA(Tbl_Sorteios[[#This Row],[D1]:[D15]])-Tbl_Sorteios[[#This Row],[Ímpares]]","v":9},{"$f":"IF(Tbl_Sorteios[[#This Row],[Ímpares]]>Tbl_Sorteios[[#This Row],[Pares]],Tbl_Sorteios[[#Headers],[Ímpares]],Tbl_Sorteios[[#Headers],[Pares]])","v":"Pares"}]
[2212,"22/04/2021",{"$f":"WEEKDAY(Tbl_Sorteios[[#This Row],[Data do Sorteio]])","v":"1900-01-05"},1,4,5,6,7,8,10,11,12,13,17,18,20,21,22,{"$f":"SUMPRODUCT((MOD(Tbl_Sorteios[[#This Row],[D1]:[D15]],2)))","v":7},{"$f":"COUNTA(Tbl_Sorteios[[#This Row],[D1]:[D15]])-Tbl_Sorteios[[#This Row],[Ímpares]]","v":8},{"$f":"IF(Tbl_Sorteios[[#This Row],[Ímpares]]>Tbl_Sorteios[[#This Row],[Pares]],Tbl_Sorteios[[#Headers],[Ímpares]],Tbl_Sorteios[[#Headers],[Pares]])","v":"Pares"}]
[2211,"20/04/2021",{"$f":"WEEKDAY(Tbl_Sorteios[[#This Row],[Data do Sorteio]])","v":"1900-01-03"},4,5,8,9,10,11,12,13,17,18,19,20,21,22,23,{"$f":"SUMPRODUCT((MOD(Tbl_Sorteios[[#This Row],[D1]:[D15]],2)))","v":8},{"$f":"COUNTA(Tbl_Sorteios[[#This Row],[D1]:[D15]])-Tbl_Sorteios[[#This Row],[Ímpares]]","v":7},{"$f":"IF(Tbl_Sorteios[[#This Row],[Ímpares]]>Tbl_Sorteios[[#This Row],[Pares]],Tbl_Sorteios[[#Headers],[Ímpares]],Tbl_Sorteios[[#Headers],[Pares]])","v":"Ímpares"}]
[2210,"19/04/2021",{"$f":"WEEKDAY(Tbl_Sorteios[[#This Row],[Data do Sorteio]])","v":"1900-01-02"},1,3,4,8,9,10,13,14,15,16,17,19,22,23,25,{"$f":"SUMPRODUCT((MOD(Tbl_Sorteios[[#This Row],[D1]:[D15]],2)))","v":9},{"$f":"COUNTA(Tbl_Sorteios[[#This Row],[D1]:[D15]])-Tbl_Sorteios[[#This Row],[Ímpares]]","v":6},{"$f":"IF(Tbl_Sorteios[[#This Row],[Ímpares]]>Tbl_Sorteios[[#This Row],[Pares]],Tbl_Sorteios[[#Headers],[Ímpares]],Tbl_Sorteios[[#Headers],[Pares]])","v":"Ímpares"}]
[2209,"17/04/2021",{"$f":"WEEKDAY(Tbl_Sorteios[[#This Row],[Data do Sorteio]])","v":"1900-01-07"},1,4,5,6,7,9,11,12,14,15,16,17,21,22,23,{"$f":"SUMPRODUCT((MOD(Tbl_Sorteios[[#This Row],[D1]:[D15]],2)))","v":9},{"$f":"COUNTA(Tbl_Sorteios[[#This Row],[D1]:[D15]])-Tbl_Sorteios[[#This Row],[Ímpares]]","v":6},{"$f":"IF(Tbl_Sorteios[[#This Row],[Ímpares]]>Tbl_Sorteios[[#This Row],[Pares]],Tbl_Sorteios[[#Headers],[Ímpares]],Tbl_Sorteios[[#Headers],[Pares]])","v":"Ímpares"}]
[2208,"16/04/2021",{"$f":"WEEKDAY(Tbl_Sorteios[[#This Row],[Data do Sorteio]])","v":"1900-01-06"},4,5,9,10,11,12,14,15,16,18,19,21,22,23,24,{"$f":"SUMPRODUCT((MOD(Tbl_Sorteios[[#This Row],[D1]:[D15]],2)))","v":7},{"$f":"COUNTA(Tbl_Sorteios[[#This Row],[D1]:[D15]])-Tbl_Sorteios[[#This Row],[Ímpares]]","v":8},{"$f":"IF(Tbl_Sorteios[[#This Row],[Ímpares]]>Tbl_Sorteios[[#This Row],[Pares]],Tbl_Sorteios[[#Headers],[Ímpares]],Tbl_Sorteios[[#Headers],[Pares]])","v":"Pares"}]
[2207,"15/04/2021",{"$f":"WEEKDAY(Tbl_Sorteios[[#This Row],[Data do Sorteio]])","v":"1900-01-05"},3,5,6,7,8,9,10,11,12,13,14,17,20,22,25,{"$f":"SUMPRODUCT((MOD(Tbl_Sorteios[[#This Row],[D1]:[D15]],2)))","v":8},{"$f":"COUNTA(Tbl_Sorteios[[#This Row],[D1]:[D15]])-Tbl_Sorteios[[#This Row],[Ímpares]]","v":7},{"$f":"IF(Tbl_Sorteios[[#This Row],[Ímpares]]>Tbl_Sorteios[[#This Row],[Pares]],Tbl_Sorteios[[#Headers],[Ímpares]],Tbl_Sorteios[[#Headers],[Pares]])","v":"Ímpares"}]
[2206,"14/04/2021",{"$f":"WEEKDAY(Tbl_Sorteios[[#This Row],[Data do Sorteio]])","v":"1900-01-04"},1,2,3,4,6,8,12,13,15,16,17,20,21,23,25,{"$f":"SUMPRODUCT((MOD(Tbl_Sorteios[[#This Row],[D1]:[D15]],2)))","v":8},{"$f":"COUNTA(Tbl_Sorteios[[#This Row],[D1]:[D15]])-Tbl_Sorteios[[#This Row],[Ímpares]]","v":7},{"$f":"IF(Tbl_Sorteios[[#This Row],[Ímpares]]>Tbl_Sorteios[[#This Row],[Pares]],Tbl_Sorteios[[#Headers],[Ímpares]],Tbl_Sorteios[[#Headers],[Pares]])","v":"Ímpares"}]
[2205,"13/04/2021",{"$f":"WEEKDAY(Tbl_Sorteios[[#This Row],[Data do Sorteio]])","v":"1900-01-03"},1,2,5,6,7,9,10,12,14,17,18,19,22,24,25,{"$f":"SUMPRODUCT((MOD(Tbl_Sorteios[[#This Row],[D1]:[D15]],2)))","v":7},{"$f":"COUNTA(Tbl_Sorteios[[#This Row],[D1]:[D15]])-Tbl_Sorteios[[#This Row],[Ímpares]]","v":8},{"$f":"IF(Tbl_Sorteios[[#This Row],[Ímpares]]>Tbl_Sorteios[[#This Row],[Pares]],Tbl_Sorteios[[#Headers],[Ímpares]],Tbl_Sorteios[[#Headers],[Pares]])","v":"Pares"}]
[2204,"12/04/2021",{"$f":"WEEKDAY(Tbl_Sorteios[[#This Row],[Data do Sorteio]])","v":"1900-01-02"},1,2,3,4,5,6,9,11,12,13,16,18,20,23,24,{"$f":"SUMPRODUCT((MOD(Tbl_Sorteios[[#This Row],[D1]:[D15]],2)))","v":7},{"$f":"COUNTA(Tbl_Sorteios[[#This Row],[D1]:[D15]])-Tbl_Sorteios[[#This Row],[Ímpares]]","v":8},{"$f":"IF(Tbl_Sorteios[[#This Row],[Ímpares]]>Tbl_Sorteios[[#This Row],[Pares]],Tbl_Sorteios[[#Headers],[Ímpares]],Tbl_Sorteios[[#Headers],[Pares]])","v":"Pares"}]
[2203,"10/04/2021",{"$f":"WEEKDAY(Tbl_Sorteios[[#This Row],[Data do Sorteio]])","v":"1900-01-07"},2,3,5,7,10,12,13,14,18,20,21,22,23,24,25,{"$f":"SUMPRODUCT((MOD(Tbl_Sorteios[[#This Row],[D1]:[D15]],2)))","v":7},{"$f":"COUNTA(Tbl_Sorteios[[#This Row],[D1]:[D15]])-Tbl_Sorteios[[#This Row],[Ímpares]]","v":8},{"$f":"IF(Tbl_Sorteios[[#This Row],[Ímpares]]>Tbl_Sorteios[[#This Row],[Pares]],Tbl_Sorteios[[#Headers],[Ímpares]],Tbl_Sorteios[[#Headers],[Pares]])","v":"Pares"}]
[2202,"09/04/2021",{"$f":"WEEKDAY(Tbl_Sorteios[[#This Row],[Data do Sorteio]])","v":"1900-01-06"},1,5,9,10,13,14,15,16,17,18,20,21,22,24,25,{"$f":"SUMPRODUCT((MOD(Tbl_Sorteios[[#This Row],[D1]:[D15]],2)))","v":8},{"$f":"COUNTA(Tbl_Sorteios[[#This Row],[D1]:[D15]])-Tbl_Sorteios[[#This Row],[Ímpares]]","v":7},{"$f":"IF(Tbl_Sorteios[[#This Row],[Ímpares]]>Tbl_Sorteios[[#This Row],[Pares]],Tbl_Sorteios[[#Headers],[Ímpares]],Tbl_Sorteios[[#Headers],[Pares]])","v":"Ímpares"}]
[2201,"08/04/2021",{"$f":"WEEKDAY(Tbl_Sorteios[[#This Row],[Data do Sorteio]])","v":"1900-01-05"},1,3,5,6,7,8,9,10,13,14,16,18,19,21,24,{"$f":"SUMPRODUCT((MOD(Tbl_Sorteios[[#This Row],[D1]:[D15]],2)))","v":8},{"$f":"COUNTA(Tbl_Sorteios[[#This Row],[D1]:[D15]])-Tbl_Sorteios[[#This Row],[Ímpares]]","v":7},{"$f":"IF(Tbl_Sorteios[[#This Row],[Ímpares]]>Tbl_Sorteios[[#This Row],[Pares]],Tbl_Sorteios[[#Headers],[Ímpares]],Tbl_Sorteios[[#Headers],[Pares]])","v":"Ímpares"}]
[2200,"07/04/2021",{"$f":"WEEKDAY(Tbl_Sorteios[[#This Row],[Data do Sorteio]])","v":"1900-01-04"},1,2,4,6,8,9,10,11,13,14,16,17,19,23,25,{"$f":"SUMPRODUCT((MOD(Tbl_Sorteios[[#This Row],[D1]:[D15]],2)))","v":8},{"$f":"COUNTA(Tbl_Sorteios[[#This Row],[D1]:[D15]])-Tbl_Sorteios[[#This Row],[Ímpares]]","v":7},{"$f":"IF(Tbl_Sorteios[[#This Row],[Ímpares]]>Tbl_Sorteios[[#This Row],[Pares]],Tbl_Sorteios[[#Headers],[Ímpares]],Tbl_Sorteios[[#Headers],[Pares]])","v":"Ímpares"}]
[2199,"06/04/2021",{"$f":"WEEKDAY(Tbl_Sorteios[[#This Row],[Data do Sorteio]])","v":"1900-01-03"},1,2,5,6,7,9,12,14,15,17,18,19,20,23,24,{"$f":"SUMPRODUCT((MOD(Tbl_Sorteios[[#This Row],[D1]:[D15]],2)))","v":8},{"$f":"COUNTA(Tbl_Sorteios[[#This Row],[D1]:[D15]])-Tbl_Sorteios[[#This Row],[Ímpares]]","v":7},{"$f":"IF(Tbl_Sorteios[[#This Row],[Ímpares]]>Tbl_Sorteios[[#This Row],[Pares]],Tbl_Sorteios[[#Headers],[Ímpares]],Tbl_Sorteios[[#Headers],[Pares]])","v":"Ímpares"}]
[2198,"05/04/2021",{"$f":"WEEKDAY(Tbl_Sorteios[[#This Row],[Data do Sorteio]])","v":"1900-01-02"},1,4,5,7,9,11,12,13,15,17,18,20,21,22,23,{"$f":"SUMPRODUCT((MOD(Tbl_Sorteios[[#This Row],[D1]:[D15]],2)))","v":10},{"$f":"COUNTA(Tbl_Sorteios[[#This Row],[D1]:[D15]])-Tbl_Sorteios[[#This Row],[Ímpares]]","v":5},{"$f":"IF(Tbl_Sorteios[[#This Row],[Ímpares]]>Tbl_Sorteios[[#This Row],[Pares]],Tbl_Sorteios[[#Headers],[Ímpares]],Tbl_Sorteios[[#Headers],[Pares]])","v":"Ímpares"}]
[2197,"03/04/2021",{"$f":"WEEKDAY(Tbl_Sorteios[[#This Row],[Data do Sorteio]])","v":"1900-01-07"},1,2,3,4,7,8,10,11,13,14,15,16,17,18,21,{"$f":"SUMPRODUCT((MOD(Tbl_Sorteios[[#This Row],[D1]:[D15]],2)))","v":8},{"$f":"COUNTA(Tbl_Sorteios[[#This Row],[D1]:[D15]])-Tbl_Sorteios[[#This Row],[Ímpares]]","v":7},{"$f":"IF(Tbl_Sorteios[[#This Row],[Ímpares]]>Tbl_Sorteios[[#This Row],[Pares]],Tbl_Sorteios[[#Headers],[Ímpares]],Tbl_Sorteios[[#Headers],[Pares]])","v":"Ímpares"}]
[2196,"01/04/2021",{"$f":"WEEKDAY(Tbl_Sorteios[[#This Row],[Data do Sorteio]])","v":"1900-01-05"},4,5,6,8,10,11,13,15,17,18,20,21,23,24,25,{"$f":"SUMPRODUCT((MOD(Tbl_Sorteios[[#This Row],[D1]:[D15]],2)))","v":8},{"$f":"COUNTA(Tbl_Sorteios[[#This Row],[D1]:[D15]])-Tbl_Sorteios[[#This Row],[Ímpares]]","v":7},{"$f":"IF(Tbl_Sorteios[[#This Row],[Ímpares]]>Tbl_Sorteios[[#This Row],[Pares]],Tbl_Sorteios[[#Headers],[Ímpares]],Tbl_Sorteios[[#Headers],[Pares]])","v":"Ímpares"}]
[2195,"31/03/2021",{"$f":"WEEKDAY(Tbl_Sorteios[[#This Row],[Data do Sorteio]])","v":"1900-01-04"},2,3,5,7,8,9,11,12,13,16,17,18,20,22,23,{"$f":"SUMPRODUCT((MOD(Tbl_Sorteios[[#This Row],[D1]:[D15]],2)))","v":8},{"$f":"COUNTA(Tbl_Sorteios[[#This Row],[D1]:[D15]])-Tbl_Sorteios[[#This Row],[Ímpares]]","v":7},{"$f":"IF(Tbl_Sorteios[[#This Row],[Ímpares]]>Tbl_Sorteios[[#This Row],[Pares]],Tbl_Sorteios[[#Headers],[Ímpares]],Tbl_Sorteios[[#Headers],[Pares]])","v":"Ímpares"}]
[2194,"30/03/2021",{"$f":"WEEKDAY(Tbl_Sorteios[[#This Row],[Data do Sorteio]])","v":"1900-01-03"},3,4,5,6,7,8,9,11,13,15,17,19,20,22,25,{"$f":"SUMPRODUCT((MOD(Tbl_Sorteios[[#This Row],[D1]:[D15]],2)))","v":10},{"$f":"COUNTA(Tbl_Sorteios[[#This Row],[D1]:[D15]])-Tbl_Sorteios[[#This Row],[Ímpares]]","v":5},{"$f":"IF(Tbl_Sorteios[[#This Row],[Ímpares]]>Tbl_Sorteios[[#This Row],[Pares]],Tbl_Sorteios[[#Headers],[Ímpares]],Tbl_Sorteios[[#Headers],[Pares]])","v":"Ímpares"}]
[2193,"29/03/2021",{"$f":"WEEKDAY(Tbl_Sorteios[[#This Row],[Data do Sorteio]])","v":"1900-01-02"},2,4,5,6,7,9,10,11,13,14,19,20,22,23,24,{"$f":"SUMPRODUCT((MOD(Tbl_Sorteios[[#This Row],[D1]:[D15]],2)))","v":7},{"$f":"COUNTA(Tbl_Sorteios[[#This Row],[D1]:[D15]])-Tbl_Sorteios[[#This Row],[Ímpares]]","v":8},{"$f":"IF(Tbl_Sorteios[[#This Row],[Ímpares]]>Tbl_Sorteios[[#This Row],[Pares]],Tbl_Sorteios[[#Headers],[Ímpares]],Tbl_Sorteios[[#Headers],[Pares]])","v":"Pares"}]
[2192,"27/03/2021",{"$f":"WEEKDAY(Tbl_Sorteios[[#This Row],[Data do Sorteio]])","v":"1900-01-07"},2,3,4,5,6,7,11,12,14,17,19,21,22,23,25,{"$f":"SUMPRODUCT((MOD(Tbl_Sorteios[[#This Row],[D1]:[D15]],2)))","v":9},{"$f":"COUNTA(Tbl_Sorteios[[#This Row],[D1]:[D15]])-Tbl_Sorteios[[#This Row],[Ímpares]]","v":6},{"$f":"IF(Tbl_Sorteios[[#This Row],[Ímpares]]>Tbl_Sorteios[[#This Row],[Pares]],Tbl_Sorteios[[#Headers],[Ímpares]],Tbl_Sorteios[[#Headers],[Pares]])","v":"Ímpares"}]
[2191,"26/03/2021",{"$f":"WEEKDAY(Tbl_Sorteios[[#This Row],[Data do Sorteio]])","v":"1900-01-06"},3,4,5,6,10,11,13,14,15,17,18,19,20,21,23,{"$f":"SUMPRODUCT((MOD(Tbl_Sorteios[[#This Row],[D1]:[D15]],2)))","v":9},{"$f":"COUNTA(Tbl_Sorteios[[#This Row],[D1]:[D15]])-Tbl_Sorteios[[#This Row],[Ímpares]]","v":6},{"$f":"IF(Tbl_Sorteios[[#This Row],[Ímpares]]>Tbl_Sorteios[[#This Row],[Pares]],Tbl_Sorteios[[#Headers],[Ímpares]],Tbl_Sorteios[[#Headers],[Pares]])","v":"Ímpares"}]
[2190,"25/03/2021",{"$f":"WEEKDAY(Tbl_Sorteios[[#This Row],[Data do Sorteio]])","v":"1900-01-05"},1,2,3,4,5,8,9,11,12,13,14,16,17,23,24,{"$f":"SUMPRODUCT((MOD(Tbl_Sorteios[[#This Row],[D1]:[D15]],2)))","v":8},{"$f":"COUNTA(Tbl_Sorteios[[#This Row],[D1]:[D15]])-Tbl_Sorteios[[#This Row],[Ímpares]]","v":7},{"$f":"IF(Tbl_Sorteios[[#This Row],[Ímpares]]>Tbl_Sorteios[[#This Row],[Pares]],Tbl_Sorteios[[#Headers],[Ímpares]],Tbl_Sorteios[[#Headers],[Pares]])","v":"Ímpares"}]
[2189,"24/03/2021",{"$f":"WEEKDAY(Tbl_Sorteios[[#This Row],[Data do Sorteio]])","v":"1900-01-04"},1,3,4,5,6,8,10,11,13,14,17,18,19,22,24,{"$f":"SUMPRODUCT((MOD(Tbl_Sorteios[[#This Row],[D1]:[D15]],2)))","v":7},{"$f":"COUNTA(Tbl_Sorteios[[#This Row],[D1]:[D15]])-Tbl_Sorteios[[#This Row],[Ímpares]]","v":8},{"$f":"IF(Tbl_Sorteios[[#This Row],[Ímpares]]>Tbl_Sorteios[[#This Row],[Pares]],Tbl_Sorteios[[#Headers],[Ímpares]],Tbl_Sorteios[[#Headers],[Pares]])","v":"Pares"}]
[2188,"23/03/2021",{"$f":"WEEKDAY(Tbl_Sorteios[[#This Row],[Data do Sorteio]])","v":"1900-01-03"},1,3,6,8,10,11,14,15,16,17,19,20,23,24,25,{"$f":"SUMPRODUCT((MOD(Tbl_Sorteios[[#This Row],[D1]:[D15]],2)))","v":8},{"$f":"COUNTA(Tbl_Sorteios[[#This Row],[D1]:[D15]])-Tbl_Sorteios[[#This Row],[Ímpares]]","v":7},{"$f":"IF(Tbl_Sorteios[[#This Row],[Ímpares]]>Tbl_Sorteios[[#This Row],[Pares]],Tbl_Sorteios[[#Headers],[Ímpares]],Tbl_Sorteios[[#Headers],[Pares]])","v":"Ímpares"}]
[2187,"22/03/2021",{"$f":"WEEKDAY(Tbl_Sorteios[[#This Row],[Data do Sorteio]])","v":"1900-01-02"},3,4,6,7,8,9,10,11,13,15,16,17,21,22,24,{"$f":"SUMPRODUCT((MOD(Tbl_Sorteios[[#This Row],[D1]:[D15]],2)))","v":8},{"$f":"COUNTA(Tbl_Sorteios[[#This Row],[D1]:[D15]])-Tbl_Sorteios[[#This Row],[Ímpares]]","v":7},{"$f":"IF(Tbl_Sorteios[[#This Row],[Ímpares]]>Tbl_Sorteios[[#This Row],[Pares]],Tbl_Sorteios[[#Headers],[Ímpares]],Tbl_Sorteios[[#Headers],[Pares]])","v":"Ímpares"}]
[2186,"20/03/2021",{"$f":"WEEKDAY(Tbl_Sorteios[[#This Row],[Data do Sorteio]])","v":"1900-01-07"},4,6,7,9,12,13,15,16,17,18,19,22,23,24,25,{"$f":"SUMPRODUCT((MOD(Tbl_Sorteios[[#This Row],[D1]:[D15]],2)))","v":8},{"$f":"COUNTA(Tbl_Sorteios[[#This Row],[D1]:[D15]])-Tbl_Sorteios[[#This Row],[Ímpares]]","v":7},{"$f":"IF(Tbl_Sorteios[[#This Row],[Ímpares]]>Tbl_Sorteios[[#This Row],[Pares]],Tbl_Sorteios[[#Headers],[Ímpares]],Tbl_Sorteios[[#Headers],[Pares]])","v":"Ímpares"}]
[2185,"19/03/2021",{"$f":"WEEKDAY(Tbl_Sorteios[[#This Row],[Data do Sorteio]])","v":"1900-01-06"},1,3,5,8,9,12,13,14,16,17,18,19,20,21,25,{"$f":"SUMPRODUCT((MOD(Tbl_Sorteios[[#This Row],[D1]:[D15]],2)))","v":9},{"$f":"COUNTA(Tbl_Sorteios[[#This Row],[D1]:[D15]])-Tbl_Sorteios[[#This Row],[Ímpares]]","v":6},{"$f":"IF(Tbl_Sorteios[[#This Row],[Ímpares]]>Tbl_Sorteios[[#This Row],[Pares]],Tbl_Sorteios[[#Headers],[Ímpares]],Tbl_Sorteios[[#Headers],[Pares]])","v":"Ímpares"}]
[2184,"18/03/2021",{"$f":"WEEKDAY(Tbl_Sorteios[[#This Row],[Data do Sorteio]])","v":"1900-01-05"},5,7,9,10,11,12,14,15,17,19,20,21,22,24,25,{"$f":"SUMPRODUCT((MOD(Tbl_Sorteios[[#This Row],[D1]:[D15]],2)))","v":9},{"$f":"COUNTA(Tbl_Sorteios[[#This Row],[D1]:[D15]])-Tbl_Sorteios[[#This Row],[Ímpares]]","v":6},{"$f":"IF(Tbl_Sorteios[[#This Row],[Ímpares]]>Tbl_Sorteios[[#This Row],[Pares]],Tbl_Sorteios[[#Headers],[Ímpares]],Tbl_Sorteios[[#Headers],[Pares]])","v":"Ímpares"}]
[2183,"17/03/2021",{"$f":"WEEKDAY(Tbl_Sorteios[[#This Row],[Data do Sorteio]])","v":"1900-01-04"},1,2,4,6,9,11,14,15,16,18,19,20,21,22,25,{"$f":"SUMPRODUCT((MOD(Tbl_Sorteios[[#This Row],[D1]:[D15]],2)))","v":7},{"$f":"COUNTA(Tbl_Sorteios[[#This Row],[D1]:[D15]])-Tbl_Sorteios[[#This Row],[Ímpares]]","v":8},{"$f":"IF(Tbl_Sorteios[[#This Row],[Ímpares]]>Tbl_Sorteios[[#This Row],[Pares]],Tbl_Sorteios[[#Headers],[Ímpares]],Tbl_Sorteios[[#Headers],[Pares]])","v":"Pares"}]
[2182,"16/03/2021",{"$f":"WEEKDAY(Tbl_Sorteios[[#This Row],[Data do Sorteio]])","v":"1900-01-03"},2,3,8,9,10,12,13,14,16,17,19,20,22,23,25,{"$f":"SUMPRODUCT((MOD(Tbl_Sorteios[[#This Row],[D1]:[D15]],2)))","v":7},{"$f":"COUNTA(Tbl_Sorteios[[#This Row],[D1]:[D15]])-Tbl_Sorteios[[#This Row],[Ímpares]]","v":8},{"$f":"IF(Tbl_Sorteios[[#This Row],[Ímpares]]>Tbl_Sorteios[[#This Row],[Pares]],Tbl_Sorteios[[#Headers],[Ímpares]],Tbl_Sorteios[[#Headers],[Pares]])","v":"Pares"}]
[2181,"15/03/2021",{"$f":"WEEKDAY(Tbl_Sorteios[[#This Row],[Data do Sorteio]])","v":"1900-01-02"},1,2,3,5,6,9,11,13,14,15,17,18,22,23,25,{"$f":"SUMPRODUCT((MOD(Tbl_Sorteios[[#This Row],[D1]:[D15]],2)))","v":10},{"$f":"COUNTA(Tbl_Sorteios[[#This Row],[D1]:[D15]])-Tbl_Sorteios[[#This Row],[Ímpares]]","v":5},{"$f":"IF(Tbl_Sorteios[[#This Row],[Ímpares]]>Tbl_Sorteios[[#This Row],[Pares]],Tbl_Sorteios[[#Headers],[Ímpares]],Tbl_Sorteios[[#Headers],[Pares]])","v":"Ímpares"}]
[2180,"13/03/2021",{"$f":"WEEKDAY(Tbl_Sorteios[[#This Row],[Data do Sorteio]])","v":"1900-01-07"},1,3,6,7,8,9,10,11,13,14,16,18,20,21,24,{"$f":"SUMPRODUCT((MOD(Tbl_Sorteios[[#This Row],[D1]:[D15]],2)))","v":7},{"$f":"COUNTA(Tbl_Sorteios[[#This Row],[D1]:[D15]])-Tbl_Sorteios[[#This Row],[Ímpares]]","v":8},{"$f":"IF(Tbl_Sorteios[[#This Row],[Ímpares]]>Tbl_Sorteios[[#This Row],[Pares]],Tbl_Sorteios[[#Headers],[Ímpares]],Tbl_Sorteios[[#Headers],[Pares]])","v":"Pares"}]
[2179,"12/03/2021",{"$f":"WEEKDAY(Tbl_Sorteios[[#This Row],[Data do Sorteio]])","v":"1900-01-06"},3,6,7,8,9,10,13,14,15,16,18,19,20,21,25,{"$f":"SUMPRODUCT((MOD(Tbl_Sorteios[[#This Row],[D1]:[D15]],2)))","v":8},{"$f":"COUNTA(Tbl_Sorteios[[#This Row],[D1]:[D15]])-Tbl_Sorteios[[#This Row],[Ímpares]]","v":7},{"$f":"IF(Tbl_Sorteios[[#This Row],[Ímpares]]>Tbl_Sorteios[[#This Row],[Pares]],Tbl_Sorteios[[#Headers],[Ímpares]],Tbl_Sorteios[[#Headers],[Pares]])","v":"Ímpares"}]
[2178,"11/03/2021",{"$f":"WEEKDAY(Tbl_Sorteios[[#This Row],[Data do Sorteio]])","v":"1900-01-05"},2,5,8,9,11,13,14,15,17,18,19,20,22,23,24,{"$f":"SUMPRODUCT((MOD(Tbl_Sorteios[[#This Row],[D1]:[D15]],2)))","v":8},{"$f":"COUNTA(Tbl_Sorteios[[#This Row],[D1]:[D15]])-Tbl_Sorteios[[#This Row],[Ímpares]]","v":7},{"$f":"IF(Tbl_Sorteios[[#This Row],[Ímpares]]>Tbl_Sorteios[[#This Row],[Pares]],Tbl_Sorteios[[#Headers],[Ímpares]],Tbl_Sorteios[[#Headers],[Pares]])","v":"Ímpares"}]
[2177,"10/03/2021",{"$f":"WEEKDAY(Tbl_Sorteios[[#This Row],[Data do Sorteio]])","v":"1900-01-04"},1,3,4,7,8,10,12,14,15,16,17,19,20,22,24,{"$f":"SUMPRODUCT((MOD(Tbl_Sorteios[[#This Row],[D1]:[D15]],2)))","v":6},{"$f":"COUNTA(Tbl_Sorteios[[#This Row],[D1]:[D15]])-Tbl_Sorteios[[#This Row],[Ímpares]]","v":9},{"$f":"IF(Tbl_Sorteios[[#This Row],[Ímpares]]>Tbl_Sorteios[[#This Row],[Pares]],Tbl_Sorteios[[#Headers],[Ímpares]],Tbl_Sorteios[[#Headers],[Pares]])","v":"Pares"}]
[2176,"09/03/2021",{"$f":"WEEKDAY(Tbl_Sorteios[[#This Row],[Data do Sorteio]])","v":"1900-01-03"},1,2,4,5,7,8,9,11,12,13,16,18,20,21,22,{"$f":"SUMPRODUCT((MOD(Tbl_Sorteios[[#This Row],[D1]:[D15]],2)))","v":7},{"$f":"COUNTA(Tbl_Sorteios[[#This Row],[D1]:[D15]])-Tbl_Sorteios[[#This Row],[Ímpares]]","v":8},{"$f":"IF(Tbl_Sorteios[[#This Row],[Ímpares]]>Tbl_Sorteios[[#This Row],[Pares]],Tbl_Sorteios[[#Headers],[Ímpares]],Tbl_Sorteios[[#Headers],[Pares]])","v":"Pares"}]
[2175,"08/03/2021",{"$f":"WEEKDAY(Tbl_Sorteios[[#This Row],[Data do Sorteio]])","v":"1900-01-02"},1,3,5,7,10,11,12,13,14,15,16,17,19,22,23,{"$f":"SUMPRODUCT((MOD(Tbl_Sorteios[[#This Row],[D1]:[D15]],2)))","v":10},{"$f":"COUNTA(Tbl_Sorteios[[#This Row],[D1]:[D15]])-Tbl_Sorteios[[#This Row],[Ímpares]]","v":5},{"$f":"IF(Tbl_Sorteios[[#This Row],[Ímpares]]>Tbl_Sorteios[[#This Row],[Pares]],Tbl_Sorteios[[#Headers],[Ímpares]],Tbl_Sorteios[[#Headers],[Pares]])","v":"Ímpares"}]
[2174,"06/03/2021",{"$f":"WEEKDAY(Tbl_Sorteios[[#This Row],[Data do Sorteio]])","v":"1900-01-07"},1,2,3,5,6,7,8,11,13,14,15,16,21,24,25,{"$f":"SUMPRODUCT((MOD(Tbl_Sorteios[[#This Row],[D1]:[D15]],2)))","v":9},{"$f":"COUNTA(Tbl_Sorteios[[#This Row],[D1]:[D15]])-Tbl_Sorteios[[#This Row],[Ímpares]]","v":6},{"$f":"IF(Tbl_Sorteios[[#This Row],[Ímpares]]>Tbl_Sorteios[[#This Row],[Pares]],Tbl_Sorteios[[#Headers],[Ímpares]],Tbl_Sorteios[[#Headers],[Pares]])","v":"Ímpares"}]
[2173,"05/03/2021",{"$f":"WEEKDAY(Tbl_Sorteios[[#This Row],[Data do Sorteio]])","v":"1900-01-06"},1,2,3,9,11,12,13,15,16,18,19,20,21,22,25,{"$f":"SUMPRODUCT((MOD(Tbl_Sorteios[[#This Row],[D1]:[D15]],2)))","v":9},{"$f":"COUNTA(Tbl_Sorteios[[#This Row],[D1]:[D15]])-Tbl_Sorteios[[#This Row],[Ímpares]]","v":6},{"$f":"IF(Tbl_Sorteios[[#This Row],[Ímpares]]>Tbl_Sorteios[[#This Row],[Pares]],Tbl_Sorteios[[#Headers],[Ímpares]],Tbl_Sorteios[[#Headers],[Pares]])","v":"Ímpares"}]
[2172,"04/03/2021",{"$f":"WEEKDAY(Tbl_Sorteios[[#This Row],[Data do Sorteio]])","v":"1900-01-05"},6,8,9,10,11,13,14,15,16,17,19,20,22,23,25,{"$f":"SUMPRODUCT((MOD(Tbl_Sorteios[[#This Row],[D1]:[D15]],2)))","v":8},{"$f":"COUNTA(Tbl_Sorteios[[#This Row],[D1]:[D15]])-Tbl_Sorteios[[#This Row],[Ímpares]]","v":7},{"$f":"IF(Tbl_Sorteios[[#This Row],[Ímpares]]>Tbl_Sorteios[[#This Row],[Pares]],Tbl_Sorteios[[#Headers],[Ímpares]],Tbl_Sorteios[[#Headers],[Pares]])","v":"Ímpares"}]
[2171,"03/03/2021",{"$f":"WEEKDAY(Tbl_Sorteios[[#This Row],[Data do Sorteio]])","v":"1900-01-04"},1,4,9,10,11,13,15,17,18,19,21,22,23,24,25,{"$f":"SUMPRODUCT((MOD(Tbl_Sorteios[[#This Row],[D1]:[D15]],2)))","v":10},{"$f":"COUNTA(Tbl_Sorteios[[#This Row],[D1]:[D15]])-Tbl_Sorteios[[#This Row],[Ímpares]]","v":5},{"$f":"IF(Tbl_Sorteios[[#This Row],[Ímpares]]>Tbl_Sorteios[[#This Row],[Pares]],Tbl_Sorteios[[#Headers],[Ímpares]],Tbl_Sorteios[[#Headers],[Pares]])","v":"Ímpares"}]
[2170,"02/03/2021",{"$f":"WEEKDAY(Tbl_Sorteios[[#This Row],[Data do Sorteio]])","v":"1900-01-03"},1,6,7,9,10,11,13,17,18,19,21,22,23,24,25,{"$f":"SUMPRODUCT((MOD(Tbl_Sorteios[[#This Row],[D1]:[D15]],2)))","v":10},{"$f":"COUNTA(Tbl_Sorteios[[#This Row],[D1]:[D15]])-Tbl_Sorteios[[#This Row],[Ímpares]]","v":5},{"$f":"IF(Tbl_Sorteios[[#This Row],[Ímpares]]>Tbl_Sorteios[[#This Row],[Pares]],Tbl_Sorteios[[#Headers],[Ímpares]],Tbl_Sorteios[[#Headers],[Pares]])","v":"Ímpares"}]
[2169,"01/03/2021",{"$f":"WEEKDAY(Tbl_Sorteios[[#This Row],[Data do Sorteio]])","v":"1900-01-02"},1,2,4,5,8,10,11,12,13,16,20,22,23,24,25,{"$f":"SUMPRODUCT((MOD(Tbl_Sorteios[[#This Row],[D1]:[D15]],2)))","v":6},{"$f":"COUNTA(Tbl_Sorteios[[#This Row],[D1]:[D15]])-Tbl_Sorteios[[#This Row],[Ímpares]]","v":9},{"$f":"IF(Tbl_Sorteios[[#This Row],[Ímpares]]>Tbl_Sorteios[[#This Row],[Pares]],Tbl_Sorteios[[#Headers],[Ímpares]],Tbl_Sorteios[[#Headers],[Pares]])","v":"Pares"}]
[2168,"27/02/2021",{"$f":"WEEKDAY(Tbl_Sorteios[[#This Row],[Data do Sorteio]])","v":"1900-01-07"},1,3,4,6,8,10,11,12,13,14,16,17,21,23,25,{"$f":"SUMPRODUCT((MOD(Tbl_Sorteios[[#This Row],[D1]:[D15]],2)))","v":8},{"$f":"COUNTA(Tbl_Sorteios[[#This Row],[D1]:[D15]])-Tbl_Sorteios[[#This Row],[Ímpares]]","v":7},{"$f":"IF(Tbl_Sorteios[[#This Row],[Ímpares]]>Tbl_Sorteios[[#This Row],[Pares]],Tbl_Sorteios[[#Headers],[Ímpares]],Tbl_Sorteios[[#Headers],[Pares]])","v":"Ímpares"}]
[2167,"26/02/2021",{"$f":"WEEKDAY(Tbl_Sorteios[[#This Row],[Data do Sorteio]])","v":"1900-01-06"},2,3,4,6,7,9,11,12,14,16,17,18,19,20,23,{"$f":"SUMPRODUCT((MOD(Tbl_Sorteios[[#This Row],[D1]:[D15]],2)))","v":7},{"$f":"COUNTA(Tbl_Sorteios[[#This Row],[D1]:[D15]])-Tbl_Sorteios[[#This Row],[Ímpares]]","v":8},{"$f":"IF(Tbl_Sorteios[[#This Row],[Ímpares]]>Tbl_Sorteios[[#This Row],[Pares]],Tbl_Sorteios[[#Headers],[Ímpares]],Tbl_Sorteios[[#Headers],[Pares]])","v":"Pares"}]
[2166,"25/02/2021",{"$f":"WEEKDAY(Tbl_Sorteios[[#This Row],[Data do Sorteio]])","v":"1900-01-05"},2,3,4,6,9,10,11,12,13,14,15,18,20,21,24,{"$f":"SUMPRODUCT((MOD(Tbl_Sorteios[[#This Row],[D1]:[D15]],2)))","v":6},{"$f":"COUNTA(Tbl_Sorteios[[#This Row],[D1]:[D15]])-Tbl_Sorteios[[#This Row],[Ímpares]]","v":9},{"$f":"IF(Tbl_Sorteios[[#This Row],[Ímpares]]>Tbl_Sorteios[[#This Row],[Pares]],Tbl_Sorteios[[#Headers],[Ímpares]],Tbl_Sorteios[[#Headers],[Pares]])","v":"Pares"}]
[2165,"24/02/2021",{"$f":"WEEKDAY(Tbl_Sorteios[[#This Row],[Data do Sorteio]])","v":"1900-01-04"},1,3,5,6,8,13,14,15,16,17,18,20,21,22,23,{"$f":"SUMPRODUCT((MOD(Tbl_Sorteios[[#This Row],[D1]:[D15]],2)))","v":8},{"$f":"COUNTA(Tbl_Sorteios[[#This Row],[D1]:[D15]])-Tbl_Sorteios[[#This Row],[Ímpares]]","v":7},{"$f":"IF(Tbl_Sorteios[[#This Row],[Ímpares]]>Tbl_Sorteios[[#This Row],[Pares]],Tbl_Sorteios[[#Headers],[Ímpares]],Tbl_Sorteios[[#Headers],[Pares]])","v":"Ímpares"}]
[2164,"23/02/2021",{"$f":"WEEKDAY(Tbl_Sorteios[[#This Row],[Data do Sorteio]])","v":"1900-01-03"},2,3,8,10,11,13,14,15,16,17,19,20,21,24,25,{"$f":"SUMPRODUCT((MOD(Tbl_Sorteios[[#This Row],[D1]:[D15]],2)))","v":8},{"$f":"COUNTA(Tbl_Sorteios[[#This Row],[D1]:[D15]])-Tbl_Sorteios[[#This Row],[Ímpares]]","v":7},{"$f":"IF(Tbl_Sorteios[[#This Row],[Ímpares]]>Tbl_Sorteios[[#This Row],[Pares]],Tbl_Sorteios[[#Headers],[Ímpares]],Tbl_Sorteios[[#Headers],[Pares]])","v":"Ímpares"}]
[2163,"22/02/2021",{"$f":"WEEKDAY(Tbl_Sorteios[[#This Row],[Data do Sorteio]])","v":"1900-01-02"},1,2,4,6,10,11,12,13,16,18,19,20,21,23,25,{"$f":"SUMPRODUCT((MOD(Tbl_Sorteios[[#This Row],[D1]:[D15]],2)))","v":7},{"$f":"COUNTA(Tbl_Sorteios[[#This Row],[D1]:[D15]])-Tbl_Sorteios[[#This Row],[Ímpares]]","v":8},{"$f":"IF(Tbl_Sorteios[[#This Row],[Ímpares]]>Tbl_Sorteios[[#This Row],[Pares]],Tbl_Sorteios[[#Headers],[Ímpares]],Tbl_Sorteios[[#Headers],[Pares]])","v":"Pares"}]
[2162,"20/02/2021",{"$f":"WEEKDAY(Tbl_Sorteios[[#This Row],[Data do Sorteio]])","v":"1900-01-07"},1,2,3,5,6,8,10,12,14,15,16,17,19,21,22,{"$f":"SUMPRODUCT((MOD(Tbl_Sorteios[[#This Row],[D1]:[D15]],2)))","v":7},{"$f":"COUNTA(Tbl_Sorteios[[#This Row],[D1]:[D15]])-Tbl_Sorteios[[#This Row],[Ímpares]]","v":8},{"$f":"IF(Tbl_Sorteios[[#This Row],[Ímpares]]>Tbl_Sorteios[[#This Row],[Pares]],Tbl_Sorteios[[#Headers],[Ímpares]],Tbl_Sorteios[[#Headers],[Pares]])","v":"Pares"}]
[2161,"19/02/2021",{"$f":"WEEKDAY(Tbl_Sorteios[[#This Row],[Data do Sorteio]])","v":"1900-01-06"},1,2,3,5,6,7,9,13,14,15,18,19,22,24,25,{"$f":"SUMPRODUCT((MOD(Tbl_Sorteios[[#This Row],[D1]:[D15]],2)))","v":9},{"$f":"COUNTA(Tbl_Sorteios[[#This Row],[D1]:[D15]])-Tbl_Sorteios[[#This Row],[Ímpares]]","v":6},{"$f":"IF(Tbl_Sorteios[[#This Row],[Ímpares]]>Tbl_Sorteios[[#This Row],[Pares]],Tbl_Sorteios[[#Headers],[Ímpares]],Tbl_Sorteios[[#Headers],[Pares]])","v":"Ímpares"}]
[2160,"18/02/2021",{"$f":"WEEKDAY(Tbl_Sorteios[[#This Row],[Data do Sorteio]])","v":"1900-01-05"},2,4,5,6,8,11,12,14,15,16,18,19,21,24,25,{"$f":"SUMPRODUCT((MOD(Tbl_Sorteios[[#This Row],[D1]:[D15]],2)))","v":6},{"$f":"COUNTA(Tbl_Sorteios[[#This Row],[D1]:[D15]])-Tbl_Sorteios[[#This Row],[Ímpares]]","v":9},{"$f":"IF(Tbl_Sorteios[[#This Row],[Ímpares]]>Tbl_Sorteios[[#This Row],[Pares]],Tbl_Sorteios[[#Headers],[Ímpares]],Tbl_Sorteios[[#Headers],[Pares]])","v":"Pares"}]
[2159,"17/02/2021",{"$f":"WEEKDAY(Tbl_Sorteios[[#This Row],[Data do Sorteio]])","v":"1900-01-04"},1,2,4,5,7,12,13,14,16,18,20,21,22,24,25,{"$f":"SUMPRODUCT((MOD(Tbl_Sorteios[[#This Row],[D1]:[D15]],2)))","v":6},{"$f":"COUNTA(Tbl_Sorteios[[#This Row],[D1]:[D15]])-Tbl_Sorteios[[#This Row],[Ímpares]]","v":9},{"$f":"IF(Tbl_Sorteios[[#This Row],[Ímpares]]>Tbl_Sorteios[[#This Row],[Pares]],Tbl_Sorteios[[#Headers],[Ímpares]],Tbl_Sorteios[[#Headers],[Pares]])","v":"Pares"}]
[2158,"13/02/2021",{"$f":"WEEKDAY(Tbl_Sorteios[[#This Row],[Data do Sorteio]])","v":"1900-01-07"},3,5,7,8,9,12,14,17,18,19,20,21,23,24,25,{"$f":"SUMPRODUCT((MOD(Tbl_Sorteios[[#This Row],[D1]:[D15]],2)))","v":9},{"$f":"COUNTA(Tbl_Sorteios[[#This Row],[D1]:[D15]])-Tbl_Sorteios[[#This Row],[Ímpares]]","v":6},{"$f":"IF(Tbl_Sorteios[[#This Row],[Ímpares]]>Tbl_Sorteios[[#This Row],[Pares]],Tbl_Sorteios[[#Headers],[Ímpares]],Tbl_Sorteios[[#Headers],[Pares]])","v":"Ímpares"}]
[2157,"12/02/2021",{"$f":"WEEKDAY(Tbl_Sorteios[[#This Row],[Data do Sorteio]])","v":"1900-01-06"},2,4,5,6,12,13,14,16,17,18,19,21,22,24,25,{"$f":"SUMPRODUCT((MOD(Tbl_Sorteios[[#This Row],[D1]:[D15]],2)))","v":6},{"$f":"COUNTA(Tbl_Sorteios[[#This Row],[D1]:[D15]])-Tbl_Sorteios[[#This Row],[Ímpares]]","v":9},{"$f":"IF(Tbl_Sorteios[[#This Row],[Ímpares]]>Tbl_Sorteios[[#This Row],[Pares]],Tbl_Sorteios[[#Headers],[Ímpares]],Tbl_Sorteios[[#Headers],[Pares]])","v":"Pares"}]
[2156,"11/02/2021",{"$f":"WEEKDAY(Tbl_Sorteios[[#This Row],[Data do Sorteio]])","v":"1900-01-05"},4,5,6,7,8,10,12,13,14,17,18,19,20,21,23,{"$f":"SUMPRODUCT((MOD(Tbl_Sorteios[[#This Row],[D1]:[D15]],2)))","v":7},{"$f":"COUNTA(Tbl_Sorteios[[#This Row],[D1]:[D15]])-Tbl_Sorteios[[#This Row],[Ímpares]]","v":8},{"$f":"IF(Tbl_Sorteios[[#This Row],[Ímpares]]>Tbl_Sorteios[[#This Row],[Pares]],Tbl_Sorteios[[#Headers],[Ímpares]],Tbl_Sorteios[[#Headers],[Pares]])","v":"Pares"}]
[2155,"10/02/2021",{"$f":"WEEKDAY(Tbl_Sorteios[[#This Row],[Data do Sorteio]])","v":"1900-01-04"},1,2,3,4,6,9,13,14,15,17,18,19,20,21,22,{"$f":"SUMPRODUCT((MOD(Tbl_Sorteios[[#This Row],[D1]:[D15]],2)))","v":8},{"$f":"COUNTA(Tbl_Sorteios[[#This Row],[D1]:[D15]])-Tbl_Sorteios[[#This Row],[Ímpares]]","v":7},{"$f":"IF(Tbl_Sorteios[[#This Row],[Ímpares]]>Tbl_Sorteios[[#This Row],[Pares]],Tbl_Sorteios[[#Headers],[Ímpares]],Tbl_Sorteios[[#Headers],[Pares]])","v":"Ímpares"}]
[2154,"09/02/2021",{"$f":"WEEKDAY(Tbl_Sorteios[[#This Row],[Data do Sorteio]])","v":"1900-01-03"},3,4,5,7,8,10,11,12,16,18,19,20,21,23,24,{"$f":"SUMPRODUCT((MOD(Tbl_Sorteios[[#This Row],[D1]:[D15]],2)))","v":7},{"$f":"COUNTA(Tbl_Sorteios[[#This Row],[D1]:[D15]])-Tbl_Sorteios[[#This Row],[Ímpares]]","v":8},{"$f":"IF(Tbl_Sorteios[[#This Row],[Ímpares]]>Tbl_Sorteios[[#This Row],[Pares]],Tbl_Sorteios[[#Headers],[Ímpares]],Tbl_Sorteios[[#Headers],[Pares]])","v":"Pares"}]
[2153,"08/02/2021",{"$f":"WEEKDAY(Tbl_Sorteios[[#This Row],[Data do Sorteio]])","v":"1900-01-02"},1,2,4,7,8,9,10,11,13,14,15,17,18,20,21,{"$f":"SUMPRODUCT((MOD(Tbl_Sorteios[[#This Row],[D1]:[D15]],2)))","v":8},{"$f":"COUNTA(Tbl_Sorteios[[#This Row],[D1]:[D15]])-Tbl_Sorteios[[#This Row],[Ímpares]]","v":7},{"$f":"IF(Tbl_Sorteios[[#This Row],[Ímpares]]>Tbl_Sorteios[[#This Row],[Pares]],Tbl_Sorteios[[#Headers],[Ímpares]],Tbl_Sorteios[[#Headers],[Pares]])","v":"Ímpares"}]
[2152,"06/02/2021",{"$f":"WEEKDAY(Tbl_Sorteios[[#This Row],[Data do Sorteio]])","v":"1900-01-07"},2,3,4,6,10,11,12,13,15,16,17,18,20,23,25,{"$f":"SUMPRODUCT((MOD(Tbl_Sorteios[[#This Row],[D1]:[D15]],2)))","v":7},{"$f":"COUNTA(Tbl_Sorteios[[#This Row],[D1]:[D15]])-Tbl_Sorteios[[#This Row],[Ímpares]]","v":8},{"$f":"IF(Tbl_Sorteios[[#This Row],[Ímpares]]>Tbl_Sorteios[[#This Row],[Pares]],Tbl_Sorteios[[#Headers],[Ímpares]],Tbl_Sorteios[[#Headers],[Pares]])","v":"Pares"}]
[2151,"05/02/2021",{"$f":"WEEKDAY(Tbl_Sorteios[[#This Row],[Data do Sorteio]])","v":"1900-01-06"},1,3,6,7,8,9,11,12,13,14,15,18,21,22,24,{"$f":"SUMPRODUCT((MOD(Tbl_Sorteios[[#This Row],[D1]:[D15]],2)))","v":8},{"$f":"COUNTA(Tbl_Sorteios[[#This Row],[D1]:[D15]])-Tbl_Sorteios[[#This Row],[Ímpares]]","v":7},{"$f":"IF(Tbl_Sorteios[[#This Row],[Ímpares]]>Tbl_Sorteios[[#This Row],[Pares]],Tbl_Sorteios[[#Headers],[Ímpares]],Tbl_Sorteios[[#Headers],[Pares]])","v":"Ímpares"}]
[2150,"04/02/2021",{"$f":"WEEKDAY(Tbl_Sorteios[[#This Row],[Data do Sorteio]])","v":"1900-01-05"},1,2,3,5,7,8,9,11,12,14,15,16,21,23,25,{"$f":"SUMPRODUCT((MOD(Tbl_Sorteios[[#This Row],[D1]:[D15]],2)))","v":10},{"$f":"COUNTA(Tbl_Sorteios[[#This Row],[D1]:[D15]])-Tbl_Sorteios[[#This Row],[Ímpares]]","v":5},{"$f":"IF(Tbl_Sorteios[[#This Row],[Ímpares]]>Tbl_Sorteios[[#This Row],[Pares]],Tbl_Sorteios[[#Headers],[Ímpares]],Tbl_Sorteios[[#Headers],[Pares]])","v":"Ímpares"}]
[2149,"03/02/2021",{"$f":"WEEKDAY(Tbl_Sorteios[[#This Row],[Data do Sorteio]])","v":"1900-01-04"},1,2,4,8,9,10,12,13,14,15,16,17,18,20,23,{"$f":"SUMPRODUCT((MOD(Tbl_Sorteios[[#This Row],[D1]:[D15]],2)))","v":6},{"$f":"COUNTA(Tbl_Sorteios[[#This Row],[D1]:[D15]])-Tbl_Sorteios[[#This Row],[Ímpares]]","v":9},{"$f":"IF(Tbl_Sorteios[[#This Row],[Ímpares]]>Tbl_Sorteios[[#This Row],[Pares]],Tbl_Sorteios[[#Headers],[Ímpares]],Tbl_Sorteios[[#Headers],[Pares]])","v":"Pares"}]
[2148,"02/02/2021",{"$f":"WEEKDAY(Tbl_Sorteios[[#This Row],[Data do Sorteio]])","v":"1900-01-03"},1,3,4,7,8,11,14,15,16,18,20,22,23,24,25,{"$f":"SUMPRODUCT((MOD(Tbl_Sorteios[[#This Row],[D1]:[D15]],2)))","v":7},{"$f":"COUNTA(Tbl_Sorteios[[#This Row],[D1]:[D15]])-Tbl_Sorteios[[#This Row],[Ímpares]]","v":8},{"$f":"IF(Tbl_Sorteios[[#This Row],[Ímpares]]>Tbl_Sorteios[[#This Row],[Pares]],Tbl_Sorteios[[#Headers],[Ímpares]],Tbl_Sorteios[[#Headers],[Pares]])","v":"Pares"}]
[2147,"01/02/2021",{"$f":"WEEKDAY(Tbl_Sorteios[[#This Row],[Data do Sorteio]])","v":"1900-01-02"},1,3,5,6,7,8,9,12,14,15,16,19,20,22,25,{"$f":"SUMPRODUCT((MOD(Tbl_Sorteios[[#This Row],[D1]:[D15]],2)))","v":8},{"$f":"COUNTA(Tbl_Sorteios[[#This Row],[D1]:[D15]])-Tbl_Sorteios[[#This Row],[Ímpares]]","v":7},{"$f":"IF(Tbl_Sorteios[[#This Row],[Ímpares]]>Tbl_Sorteios[[#This Row],[Pares]],Tbl_Sorteios[[#Headers],[Ímpares]],Tbl_Sorteios[[#Headers],[Pares]])","v":"Ímpares"}]
[2146,"30/01/2021",{"$f":"WEEKDAY(Tbl_Sorteios[[#This Row],[Data do Sorteio]])","v":"1900-01-07"},1,2,4,6,8,9,11,13,16,17,18,19,20,21,22,{"$f":"SUMPRODUCT((MOD(Tbl_Sorteios[[#This Row],[D1]:[D15]],2)))","v":7},{"$f":"COUNTA(Tbl_Sorteios[[#This Row],[D1]:[D15]])-Tbl_Sorteios[[#This Row],[Ímpares]]","v":8},{"$f":"IF(Tbl_Sorteios[[#This Row],[Ímpares]]>Tbl_Sorteios[[#This Row],[Pares]],Tbl_Sorteios[[#Headers],[Ímpares]],Tbl_Sorteios[[#Headers],[Pares]])","v":"Pares"}]
[2145,"29/01/2021",{"$f":"WEEKDAY(Tbl_Sorteios[[#This Row],[Data do Sorteio]])","v":"1900-01-06"},2,5,6,7,8,10,12,13,14,15,17,20,23,24,25,{"$f":"SUMPRODUCT((MOD(Tbl_Sorteios[[#This Row],[D1]:[D15]],2)))","v":7},{"$f":"COUNTA(Tbl_Sorteios[[#This Row],[D1]:[D15]])-Tbl_Sorteios[[#This Row],[Ímpares]]","v":8},{"$f":"IF(Tbl_Sorteios[[#This Row],[Ímpares]]>Tbl_Sorteios[[#This Row],[Pares]],Tbl_Sorteios[[#Headers],[Ímpares]],Tbl_Sorteios[[#Headers],[Pares]])","v":"Pares"}]
[2144,"28/01/2021",{"$f":"WEEKDAY(Tbl_Sorteios[[#This Row],[Data do Sorteio]])","v":"1900-01-05"},1,2,5,6,8,9,11,12,13,14,15,17,19,20,25,{"$f":"SUMPRODUCT((MOD(Tbl_Sorteios[[#This Row],[D1]:[D15]],2)))","v":9},{"$f":"COUNTA(Tbl_Sorteios[[#This Row],[D1]:[D15]])-Tbl_Sorteios[[#This Row],[Ímpares]]","v":6},{"$f":"IF(Tbl_Sorteios[[#This Row],[Ímpares]]>Tbl_Sorteios[[#This Row],[Pares]],Tbl_Sorteios[[#Headers],[Ímpares]],Tbl_Sorteios[[#Headers],[Pares]])","v":"Ímpares"}]
[2143,"27/01/2021",{"$f":"WEEKDAY(Tbl_Sorteios[[#This Row],[Data do Sorteio]])","v":"1900-01-04"},1,2,3,6,9,10,11,14,17,18,19,20,21,23,25,{"$f":"SUMPRODUCT((MOD(Tbl_Sorteios[[#This Row],[D1]:[D15]],2)))","v":9},{"$f":"COUNTA(Tbl_Sorteios[[#This Row],[D1]:[D15]])-Tbl_Sorteios[[#This Row],[Ímpares]]","v":6},{"$f":"IF(Tbl_Sorteios[[#This Row],[Ímpares]]>Tbl_Sorteios[[#This Row],[Pares]],Tbl_Sorteios[[#Headers],[Ímpares]],Tbl_Sorteios[[#Headers],[Pares]])","v":"Ímpares"}]
[2142,"26/01/2021",{"$f":"WEEKDAY(Tbl_Sorteios[[#This Row],[Data do Sorteio]])","v":"1900-01-03"},2,4,6,7,9,11,12,14,16,17,20,22,23,24,25,{"$f":"SUMPRODUCT((MOD(Tbl_Sorteios[[#This Row],[D1]:[D15]],2)))","v":6},{"$f":"COUNTA(Tbl_Sorteios[[#This Row],[D1]:[D15]])-Tbl_Sorteios[[#This Row],[Ímpares]]","v":9},{"$f":"IF(Tbl_Sorteios[[#This Row],[Ímpares]]>Tbl_Sorteios[[#This Row],[Pares]],Tbl_Sorteios[[#Headers],[Ímpares]],Tbl_Sorteios[[#Headers],[Pares]])","v":"Pares"}]
[2141,"25/01/2021",{"$f":"WEEKDAY(Tbl_Sorteios[[#This Row],[Data do Sorteio]])","v":"1900-01-02"},1,2,3,4,5,7,8,9,10,14,18,22,23,24,25,{"$f":"SUMPRODUCT((MOD(Tbl_Sorteios[[#This Row],[D1]:[D15]],2)))","v":7},{"$f":"COUNTA(Tbl_Sorteios[[#This Row],[D1]:[D15]])-Tbl_Sorteios[[#This Row],[Ímpares]]","v":8},{"$f":"IF(Tbl_Sorteios[[#This Row],[Ímpares]]>Tbl_Sorteios[[#This Row],[Pares]],Tbl_Sorteios[[#Headers],[Ímpares]],Tbl_Sorteios[[#Headers],[Pares]])","v":"Pares"}]
[2140,"23/01/2021",{"$f":"WEEKDAY(Tbl_Sorteios[[#This Row],[Data do Sorteio]])","v":"1900-01-07"},1,3,5,6,7,8,9,11,15,17,20,21,22,23,24,{"$f":"SUMPRODUCT((MOD(Tbl_Sorteios[[#This Row],[D1]:[D15]],2)))","v":10},{"$f":"COUNTA(Tbl_Sorteios[[#This Row],[D1]:[D15]])-Tbl_Sorteios[[#This Row],[Ímpares]]","v":5},{"$f":"IF(Tbl_Sorteios[[#This Row],[Ímpares]]>Tbl_Sorteios[[#This Row],[Pares]],Tbl_Sorteios[[#Headers],[Ímpares]],Tbl_Sorteios[[#Headers],[Pares]])","v":"Ímpares"}]
[2139,"22/01/2021",{"$f":"WEEKDAY(Tbl_Sorteios[[#This Row],[Data do Sorteio]])","v":"1900-01-06"},1,2,3,7,8,12,13,14,16,17,18,19,22,23,25,{"$f":"SUMPRODUCT((MOD(Tbl_Sorteios[[#This Row],[D1]:[D15]],2)))","v":8},{"$f":"COUNTA(Tbl_Sorteios[[#This Row],[D1]:[D15]])-Tbl_Sorteios[[#This Row],[Ímpares]]","v":7},{"$f":"IF(Tbl_Sorteios[[#This Row],[Ímpares]]>Tbl_Sorteios[[#This Row],[Pares]],Tbl_Sorteios[[#Headers],[Ímpares]],Tbl_Sorteios[[#Headers],[Pares]])","v":"Ímpares"}]
[2138,"21/01/2021",{"$f":"WEEKDAY(Tbl_Sorteios[[#This Row],[Data do Sorteio]])","v":"1900-01-05"},2,3,5,6,7,8,9,12,13,16,18,19,21,22,24,{"$f":"SUMPRODUCT((MOD(Tbl_Sorteios[[#This Row],[D1]:[D15]],2)))","v":7},{"$f":"COUNTA(Tbl_Sorteios[[#This Row],[D1]:[D15]])-Tbl_Sorteios[[#This Row],[Ímpares]]","v":8},{"$f":"IF(Tbl_Sorteios[[#This Row],[Ímpares]]>Tbl_Sorteios[[#This Row],[Pares]],Tbl_Sorteios[[#Headers],[Ímpares]],Tbl_Sorteios[[#Headers],[Pares]])","v":"Pares"}]
[2137,"20/01/2021",{"$f":"WEEKDAY(Tbl_Sorteios[[#This Row],[Data do Sorteio]])","v":"1900-01-04"},2,6,7,9,11,12,13,14,16,17,18,19,20,21,23,{"$f":"SUMPRODUCT((MOD(Tbl_Sorteios[[#This Row],[D1]:[D15]],2)))","v":8},{"$f":"COUNTA(Tbl_Sorteios[[#This Row],[D1]:[D15]])-Tbl_Sorteios[[#This Row],[Ímpares]]","v":7},{"$f":"IF(Tbl_Sorteios[[#This Row],[Ímpares]]>Tbl_Sorteios[[#This Row],[Pares]],Tbl_Sorteios[[#Headers],[Ímpares]],Tbl_Sorteios[[#Headers],[Pares]])","v":"Ímpares"}]
[2136,"19/01/2021",{"$f":"WEEKDAY(Tbl_Sorteios[[#This Row],[Data do Sorteio]])","v":"1900-01-03"},2,3,4,6,7,9,10,13,14,16,18,19,20,24,25,{"$f":"SUMPRODUCT((MOD(Tbl_Sorteios[[#This Row],[D1]:[D15]],2)))","v":6},{"$f":"COUNTA(Tbl_Sorteios[[#This Row],[D1]:[D15]])-Tbl_Sorteios[[#This Row],[Ímpares]]","v":9},{"$f":"IF(Tbl_Sorteios[[#This Row],[Ímpares]]>Tbl_Sorteios[[#This Row],[Pares]],Tbl_Sorteios[[#Headers],[Ímpares]],Tbl_Sorteios[[#Headers],[Pares]])","v":"Pares"}]
[2135,"18/01/2021",{"$f":"WEEKDAY(Tbl_Sorteios[[#This Row],[Data do Sorteio]])","v":"1900-01-02"},1,2,3,4,5,6,8,13,15,16,18,19,21,23,25,{"$f":"SUMPRODUCT((MOD(Tbl_Sorteios[[#This Row],[D1]:[D15]],2)))","v":9},{"$f":"COUNTA(Tbl_Sorteios[[#This Row],[D1]:[D15]])-Tbl_Sorteios[[#This Row],[Ímpares]]","v":6},{"$f":"IF(Tbl_Sorteios[[#This Row],[Ímpares]]>Tbl_Sorteios[[#This Row],[Pares]],Tbl_Sorteios[[#Headers],[Ímpares]],Tbl_Sorteios[[#Headers],[Pares]])","v":"Ímpares"}]
[2134,"16/01/2021",{"$f":"WEEKDAY(Tbl_Sorteios[[#This Row],[Data do Sorteio]])","v":"1900-01-07"},1,3,4,6,8,10,12,14,17,18,19,20,21,22,25,{"$f":"SUMPRODUCT((MOD(Tbl_Sorteios[[#This Row],[D1]:[D15]],2)))","v":6},{"$f":"COUNTA(Tbl_Sorteios[[#This Row],[D1]:[D15]])-Tbl_Sorteios[[#This Row],[Ímpares]]","v":9},{"$f":"IF(Tbl_Sorteios[[#This Row],[Ímpares]]>Tbl_Sorteios[[#This Row],[Pares]],Tbl_Sorteios[[#Headers],[Ímpares]],Tbl_Sorteios[[#Headers],[Pares]])","v":"Pares"}]
[2133,"15/01/2021",{"$f":"WEEKDAY(Tbl_Sorteios[[#This Row],[Data do Sorteio]])","v":"1900-01-06"},2,4,6,7,8,9,10,11,14,15,17,18,19,21,23,{"$f":"SUMPRODUCT((MOD(Tbl_Sorteios[[#This Row],[D1]:[D15]],2)))","v":8},{"$f":"COUNTA(Tbl_Sorteios[[#This Row],[D1]:[D15]])-Tbl_Sorteios[[#This Row],[Ímpares]]","v":7},{"$f":"IF(Tbl_Sorteios[[#This Row],[Ímpares]]>Tbl_Sorteios[[#This Row],[Pares]],Tbl_Sorteios[[#Headers],[Ímpares]],Tbl_Sorteios[[#Headers],[Pares]])","v":"Ímpares"}]
[2132,"14/01/2021",{"$f":"WEEKDAY(Tbl_Sorteios[[#This Row],[Data do Sorteio]])","v":"1900-01-05"},1,3,6,9,10,11,12,15,17,19,20,21,22,23,24,{"$f":"SUMPRODUCT((MOD(Tbl_Sorteios[[#This Row],[D1]:[D15]],2)))","v":9},{"$f":"COUNTA(Tbl_Sorteios[[#This Row],[D1]:[D15]])-Tbl_Sorteios[[#This Row],[Ímpares]]","v":6},{"$f":"IF(Tbl_Sorteios[[#This Row],[Ímpares]]>Tbl_Sorteios[[#This Row],[Pares]],Tbl_Sorteios[[#Headers],[Ímpares]],Tbl_Sorteios[[#Headers],[Pares]])","v":"Ímpares"}]
[2131,"13/01/2021",{"$f":"WEEKDAY(Tbl_Sorteios[[#This Row],[Data do Sorteio]])","v":"1900-01-04"},1,2,3,7,8,9,10,11,13,14,16,17,19,23,25,{"$f":"SUMPRODUCT((MOD(Tbl_Sorteios[[#This Row],[D1]:[D15]],2)))","v":10},{"$f":"COUNTA(Tbl_Sorteios[[#This Row],[D1]:[D15]])-Tbl_Sorteios[[#This Row],[Ímpares]]","v":5},{"$f":"IF(Tbl_Sorteios[[#This Row],[Ímpares]]>Tbl_Sorteios[[#This Row],[Pares]],Tbl_Sorteios[[#Headers],[Ímpares]],Tbl_Sorteios[[#Headers],[Pares]])","v":"Ímpares"}]
[2130,"12/01/2021",{"$f":"WEEKDAY(Tbl_Sorteios[[#This Row],[Data do Sorteio]])","v":"1900-01-03"},3,4,6,7,9,10,11,12,13,14,15,16,18,20,23,{"$f":"SUMPRODUCT((MOD(Tbl_Sorteios[[#This Row],[D1]:[D15]],2)))","v":7},{"$f":"COUNTA(Tbl_Sorteios[[#This Row],[D1]:[D15]])-Tbl_Sorteios[[#This Row],[Ímpares]]","v":8},{"$f":"IF(Tbl_Sorteios[[#This Row],[Ímpares]]>Tbl_Sorteios[[#This Row],[Pares]],Tbl_Sorteios[[#Headers],[Ímpares]],Tbl_Sorteios[[#Headers],[Pares]])","v":"Pares"}]
[2129,"11/01/2021",{"$f":"WEEKDAY(Tbl_Sorteios[[#This Row],[Data do Sorteio]])","v":"1900-01-02"},1,3,4,6,7,8,10,11,14,15,19,20,21,22,24,{"$f":"SUMPRODUCT((MOD(Tbl_Sorteios[[#This Row],[D1]:[D15]],2)))","v":7},{"$f":"COUNTA(Tbl_Sorteios[[#This Row],[D1]:[D15]])-Tbl_Sorteios[[#This Row],[Ímpares]]","v":8},{"$f":"IF(Tbl_Sorteios[[#This Row],[Ímpares]]>Tbl_Sorteios[[#This Row],[Pares]],Tbl_Sorteios[[#Headers],[Ímpares]],Tbl_Sorteios[[#Headers],[Pares]])","v":"Pares"}]
[2128,"09/01/2021",{"$f":"WEEKDAY(Tbl_Sorteios[[#This Row],[Data do Sorteio]])","v":"1900-01-07"},2,3,4,6,7,9,10,11,14,16,17,18,22,23,25,{"$f":"SUMPRODUCT((MOD(Tbl_Sorteios[[#This Row],[D1]:[D15]],2)))","v":7},{"$f":"COUNTA(Tbl_Sorteios[[#This Row],[D1]:[D15]])-Tbl_Sorteios[[#This Row],[Ímpares]]","v":8},{"$f":"IF(Tbl_Sorteios[[#This Row],[Ímpares]]>Tbl_Sorteios[[#This Row],[Pares]],Tbl_Sorteios[[#Headers],[Ímpares]],Tbl_Sorteios[[#Headers],[Pares]])","v":"Pares"}]
[2127,"08/01/2021",{"$f":"WEEKDAY(Tbl_Sorteios[[#This Row],[Data do Sorteio]])","v":"1900-01-06"},2,3,4,5,6,10,11,13,14,15,16,18,20,23,24,{"$f":"SUMPRODUCT((MOD(Tbl_Sorteios[[#This Row],[D1]:[D15]],2)))","v":6},{"$f":"COUNTA(Tbl_Sorteios[[#This Row],[D1]:[D15]])-Tbl_Sorteios[[#This Row],[Ímpares]]","v":9},{"$f":"IF(Tbl_Sorteios[[#This Row],[Ímpares]]>Tbl_Sorteios[[#This Row],[Pares]],Tbl_Sorteios[[#Headers],[Ímpares]],Tbl_Sorteios[[#Headers],[Pares]])","v":"Pares"}]
[2126,"07/01/2021",{"$f":"WEEKDAY(Tbl_Sorteios[[#This Row],[Data do Sorteio]])","v":"1900-01-05"},1,3,4,5,7,8,9,10,12,15,17,21,22,24,25,{"$f":"SUMPRODUCT((MOD(Tbl_Sorteios[[#This Row],[D1]:[D15]],2)))","v":9},{"$f":"COUNTA(Tbl_Sorteios[[#This Row],[D1]:[D15]])-Tbl_Sorteios[[#This Row],[Ímpares]]","v":6},{"$f":"IF(Tbl_Sorteios[[#This Row],[Ímpares]]>Tbl_Sorteios[[#This Row],[Pares]],Tbl_Sorteios[[#Headers],[Ímpares]],Tbl_Sorteios[[#Headers],[Pares]])","v":"Ímpares"}]
[2125,"06/01/2021",{"$f":"WEEKDAY(Tbl_Sorteios[[#This Row],[Data do Sorteio]])","v":"1900-01-04"},1,8,10,11,12,13,15,16,17,19,20,21,23,24,25,{"$f":"SUMPRODUCT((MOD(Tbl_Sorteios[[#This Row],[D1]:[D15]],2)))","v":9},{"$f":"COUNTA(Tbl_Sorteios[[#This Row],[D1]:[D15]])-Tbl_Sorteios[[#This Row],[Ímpares]]","v":6},{"$f":"IF(Tbl_Sorteios[[#This Row],[Ímpares]]>Tbl_Sorteios[[#This Row],[Pares]],Tbl_Sorteios[[#Headers],[Ímpares]],Tbl_Sorteios[[#Headers],[Pares]])","v":"Ímpares"}]
[2124,"05/01/2021",{"$f":"WEEKDAY(Tbl_Sorteios[[#This Row],[Data do Sorteio]])","v":"1900-01-03"},1,3,5,6,7,8,9,10,11,13,16,22,23,24,25,{"$f":"SUMPRODUCT((MOD(Tbl_Sorteios[[#This Row],[D1]:[D15]],2)))","v":9},{"$f":"COUNTA(Tbl_Sorteios[[#This Row],[D1]:[D15]])-Tbl_Sorteios[[#This Row],[Ímpares]]","v":6},{"$f":"IF(Tbl_Sorteios[[#This Row],[Ímpares]]>Tbl_Sorteios[[#This Row],[Pares]],Tbl_Sorteios[[#Headers],[Ímpares]],Tbl_Sorteios[[#Headers],[Pares]])","v":"Ímpares"}]
[2123,"04/01/2021",{"$f":"WEEKDAY(Tbl_Sorteios[[#This Row],[Data do Sorteio]])","v":"1900-01-02"},1,5,6,8,9,10,14,17,18,19,20,21,23,24,25,{"$f":"SUMPRODUCT((MOD(Tbl_Sorteios[[#This Row],[D1]:[D15]],2)))","v":8},{"$f":"COUNTA(Tbl_Sorteios[[#This Row],[D1]:[D15]])-Tbl_Sorteios[[#This Row],[Ímpares]]","v":7},{"$f":"IF(Tbl_Sorteios[[#This Row],[Ímpares]]>Tbl_Sorteios[[#This Row],[Pares]],Tbl_Sorteios[[#Headers],[Ímpares]],Tbl_Sorteios[[#Headers],[Pares]])","v":"Ímpares"}]
[2122,"02/01/2021",{"$f":"WEEKDAY(Tbl_Sorteios[[#This Row],[Data do Sorteio]])","v":"1900-01-07"},1,3,4,5,9,10,11,14,15,18,20,21,22,23,25,{"$f":"SUMPRODUCT((MOD(Tbl_Sorteios[[#This Row],[D1]:[D15]],2)))","v":9},{"$f":"COUNTA(Tbl_Sorteios[[#This Row],[D1]:[D15]])-Tbl_Sorteios[[#This Row],[Ímpares]]","v":6},{"$f":"IF(Tbl_Sorteios[[#This Row],[Ímpares]]>Tbl_Sorteios[[#This Row],[Pares]],Tbl_Sorteios[[#Headers],[Ímpares]],Tbl_Sorteios[[#Headers],[Pares]])","v":"Ímpares"}]

{"sheet":"RANKING","index":1,"n_rows":18,"n_cols":26,"rows_kept":18,"cut":false,"hidden":false,"merged":[[0,0,0,25]]}
["Ranking de Sorteios"]
["Dezenas",1,2,3,4,5,6,7,8,9,10,11,12,13,14,15,16,17,18,19,20,21,22,23,24,25]
["Sorteios",{"$f":"COUNTIF(SORTEIOS!$D:$R,RANKING!$B$2)","v":76},{"$f":"COUNTIF(SORTEIOS!$D:$R,RANKING!$C$2)","v":70},{"$f":"COUNTIF(SORTEIOS!$D:$R,RANKING!$D$2)","v":81},{"$f":"COUNTIF(SORTEIOS!$D:$R,RANKING!$E$2)","v":76},{"$f":"COUNTIF(SORTEIOS!$D:$R,RANKING!$F$2)","v":77},{"$f":"COUNTIF(SORTEIOS!$D:$R,RANKING!$G$2)","v":91},{"$f":"COUNTIF(SORTEIOS!$D:$R,RANKING!$H$2)","v":78},{"$f":"COUNTIF(SORTEIOS!$D:$R,RANKING!$I$2)","v":83},{"$f":"COUNTIF(SORTEIOS!$D:$R,RANKING!$J$2)","v":85},{"$f":"COUNTIF(SORTEIOS!$D:$R,RANKING!$K$2)","v":84},{"$f":"COUNTIF(SORTEIOS!$D:$R,RANKING!$L$2)","v":83},{"$f":"COUNTIF(SORTEIOS!$D:$R,RANKING!$M$2)","v":77},{"$f":"COUNTIF(SORTEIOS!$D:$R,RANKING!$N$2)","v":89},{"$f":"COUNTIF(SORTEIOS!$D:$R,RANKING!$O$2)","v":91},{"$f":"COUNTIF(SORTEIOS!$D:$R,RANKING!$P$2)","v":74},{"$f":"COUNTIF(SORTEIOS!$D:$R,RANKING!$Q$2)","v":77},{"$f":"COUNTIF(SORTEIOS!$D:$R,RANKING!$R$2)","v":87},{"$f":"COUNTIF(SORTEIOS!$D:$R,RANKING!$S$2)","v":82},{"$f":"COUNTIF(SORTEIOS!$D:$R,RANKING!$T$2)","v":83},{"$f":"COUNTIF(SORTEIOS!$D:$R,RANKING!$U$2)","v":89},{"$f":"COUNTIF(SORTEIOS!$D:$R,RANKING!$V$2)","v":77},{"$f":"COUNTIF(SORTEIOS!$D:$R,RANKING!$W$2)","v":79},{"$f":"COUNTIF(SORTEIOS!$D:$R,RANKING!$X$2)","v":80},{"$f":"COUNTIF(SORTEIOS!$D:$R,RANKING!$Y$2)","v":72},{"$f":"COUNTIF(SORTEIOS!$D:$R,RANKING!$Z$2)","v":84}]
[]
[]
[]
[]
[]
[]
[]
[]
[]
[]
["Ímpares",1,3,5,7,9,11,13,15,17,19,21,23,25]
["Sorteios",{"$f":"HLOOKUP(B14,$B$2:$Z$3,2,0)","v":76},{"$f":"HLOOKUP(C14,$B$2:$Z$3,2,0)","v":81},77,78,85,83,89,74,87,83,77,80,84]
[]
["Pares",2,4,6,8,10,12,14,16,18,20,22,24]
["Sorteios",{"$f":"HLOOKUP(B17,$B$2:$Z$3,2,0)","v":70},{"$f":"HLOOKUP(C17,$B$2:$Z$3,2,0)","v":76},{"$f":"HLOOKUP(D17,$B$2:$Z$3,2,0)","v":91},{"$f":"HLOOKUP(E17,$B$2:$Z$3,2,0)","v":83},{"$f":"HLOOKUP(F17,$B$2:$Z$3,2,0)","v":84},{"$f":"HLOOKUP(G17,$B$2:$Z$3,2,0)","v":77},{"$f":"HLOOKUP(H17,$B$2:$Z$3,2,0)","v":91},{"$f":"HLOOKUP(I17,$B$2:$Z$3,2,0)","v":77},{"$f":"HLOOKUP(J17,$B$2:$Z$3,2,0)","v":82},{"$f":"HLOOKUP(K17,$B$2:$Z$3,2,0)","v":89},{"$f":"HLOOKUP(L17,$B$2:$Z$3,2,0)","v":79},{"$f":"HLOOKUP(M17,$B$2:$Z$3,2,0)","v":72}]